Workbook

Sheet GRDV
A1: TABLEAU EXTRACTION GRDV J+1 ( Depuis le 03 Janvier 2022 ) | G1: Total inter | H1: Total OK | I1: Total NOK | J1: % OK | K1: % NOK | M1: ID | N1: Nom | O1: Dep | P1: Total inter | Q1: Insta | R1: Echecs | S1: %OK | T1: %NOK | Y1: Sem | Z1: Mois | AB1: Code | AC1: Famille Echecs | AD1: Libellé de cloture
G2: =_xlfn.AGGREGATE(3,5,GRDV[Synchro]) -> 1572 | H2: =COUNTIF(AJ5:AJ30000,1) -> 1216 | I2: =COUNTIF(AK5:AK30000,1) -> 356 | J2: =H2/G2 -> 0.7735368957 | K2: =I2/G2 -> 0.2264631043 | M2: 1 | N2: Ahmadabdalah Abdelmajid | O2: 44 | P2: =COUNTIFS($D$5:$D$30000,"Ahmadabdalah Abdelmajid") -> 0 | Q2: =COUNTIFS($D$5:$D$30000,"Ahmadabdalah Abdelmajid",$H$5:$H$30000,"OK") -> 0 | R2: =COUNTIFS($D$5:$D$30000,"Ahmadabdalah Abdelmajid",$H$5:$H$30000,"NOK") -> 0 | Y2: S1 | Z2: JANVIER | AB2: 321 | AC2: Echecs Techniques | AD2: RDV non honoré
M3: 2 | N3: Ahmed Zakaria | O3: 29 | P3: =_xlfn.AGGREGATE(3,5,GRDV[Technicien]) -> 1572 | Q3: =_xlfn.AGGREGATE(3,5,GRDV[Synchro],"OK") ->  | R3: =COUNTIFS($D$5:$D$30000,"Ahmed Zakaria",$H$5:$H$30000,"NOK") -> 28 | S3: =(Q3/P3) ->  | T3: =(R3/P3) -> 0.01781170483 | Y3: S2 | Z3: JANVIER | AB3: 404 | AC3: Echecs Techniques | AD3: Raccordement irréalisable - Abandon
A4: Code | B4: Debrief | C4: Date RDV | D4: Technicien | E4: Zone | F4: Secteur | G4: Infra | H4: Synchro | I4: Famille echecs | J4: Sem | K4: Mois | M4: 3 | N4: Bachar Abdoulrahim | O4: 44 | P4: =COUNTIFS($D$5:$D$30000,"Bachar Abdoulrahim") -> 125 | Q4: =COUNTIFS($D$5:$D$30000,"Bachar Abdoulrahim",$H$5:$H$30000,"OK") -> 98 | R4: =COUNTIFS($D$5:$D$30000,"Bachar Abdoulrahim",$H$5:$H$30000,"NOK") -> 27 | S4: 0.784 | T4: 0.216 | Y4: S3 | Z4: JANVIER | AB4: 405 | AC4: Echecs Techniques | AD4: PTO pose
A5: 1606 | B5: Raccordement avec synchro | C5: 2022-01-03T08:00:00 | D5: Uguen Nicolas | E5: ZMD | F5: 29 Finistere ZMD - Brest | G5: POTEAU | H5: =IF(A5>1606,"NOK",IF(A5<1606,"NOK",IF(A5=1606,"OK"))) -> OK | I5: =VLOOKUP(A:A,CODE[#All],2,0) -> Raccordée OK | J5: S1 | K5: =VLOOKUP(J:J,SEM[#All],2,0) -> JANVIER | M5: 4 | N5: Bary Alimou | O5: 29 | P5: =COUNTIFS($D$5:$D$30000,"Bary Alimou") -> 12 | Q5: =COUNTIFS($D$5:$D$30000,"Bary Alimou",$H$5:$H$30000,"OK") -> 9 | R5: =COUNTIFS($D$5:$D$30000,"Bary Alimou",$H$5:$H$30000,"NOK") -> 3 | S5: 0.75 | T5: 0.25 | Y5: S4 | Z5: JANVIER | AB5: 406 | AC5: Raccordée OK | AD5: PTO raccordée | AJ5: =IF(GRDV[[#This Row],[Synchro]]="OK",SUBTOTAL(3,GRDV[[#This Row],[Synchro]]),"") -> 1 | AK5: =IF(GRDV[[#This Row],[Synchro]]="NOK",SUBTOTAL(3,GRDV[[#This Row],[Synchro]]),"") -> 
A6: 1606 | B6: Raccordement avec synchro | C6: 2022-01-03T08:00:00 | D6: Bary Alimou | E6: RIP | F6: 44 LOIRE-ATLANTIQUE - HERIC RIP LOAN | G6: CHAMBRE | H6: =IF(A6>1606,"NOK",IF(A6<1606,"NOK",IF(A6=1606,"OK"))) -> OK | I6: =VLOOKUP(A:A,CODE[#All],2,0) -> Raccordée OK | J6: S1 | K6: =VLOOKUP(J:J,SEM[#All],2,0) -> JANVIER | M6: 5 | N6: Belgacem Amine | O6: 44 | P6: =COUNTIFS($D$5:$D$30000,"Belgacem Amine") -> 114 | Q6: =COUNTIFS($D$5:$D$30000,"Belgacem Amine",$H$5:$H$30000,"OK") -> 88 | R6: =COUNTIFS($D$5:$D$30000,"Belgacem Amine",$H$5:$H$30000,"NOK") -> 26 | S6: 0.7719298246 | T6: 0.2280701754 | Y6: S5 | Z6: FEVRIER | AB6: 407 | AC6: Echecs Client | AD6: Client absent | AJ6: =IF(GRDV[[#This Row],[Synchro]]="OK",SUBTOTAL(3,GRDV[[#This Row],[Synchro]]),"") -> 1 | AK6: =IF(GRDV[[#This Row],[Synchro]]="NOK",SUBTOTAL(3,GRDV[[#This Row],[Synchro]]),"") -> 
A7: 1773 | B7: Fourreau à déboucher (extérieur) | C7: 2022-01-03T08:00:00 | D7: Belgacem Amine | E7: RIP | F7: 44 LOIRE-ATLANTIQUE - HERIC RIP LOAN | G7: POTEAU | H7: NOK | I7: =VLOOKUP(A:A,CODE[#All],2,0) -> Echecs Techniques | J7: S1 | K7: =VLOOKUP(J:J,SEM[#All],2,0) -> JANVIER | M7: 6 | N7: Bernier Brandon | O7: 44 | P7: =COUNTIFS($D$5:$D$30000,"Bernier Brandon") -> 109 | Q7: =COUNTIFS($D$5:$D$30000,"Bernier Brandon",$H$5:$H$30000,"OK") -> 70 | R7: =COUNTIFS($D$5:$D$30000,"Bernier Brandon",$H$5:$H$30000,"NOK") -> 39 | S7: 0.6422018349 | T7: 0.3577981651 | Y7: S6 | Z7: FEVRIER | AB7: 409 | AC7: Raccordée OK | AD7: PTO raccordé sans constits - PTO pre raccord | AJ7: =IF(GRDV[[#This Row],[Synchro]]="OK",SUBTOTAL(3,GRDV[[#This Row],[Synchro]]),"") ->  | AK7: =IF(GRDV[[#This Row],[Synchro]]="NOK",SUBTOTAL(3,GRDV[[#This Row],[Synchro]]),"") -> 1
A8: 1606 | B8: Raccordement avec synchro | C8: 2022-01-03T08:00:00 | D8: Fiacques Nibesson | E8: ZMD | F8: 29 Finistere ZMD - Brest | G8: STANDARD | H8: OK | I8: =VLOOKUP(A:A,CODE[#All],2,0) -> Raccordée OK | J8: S1 | K8: =VLOOKUP(J:J,SEM[#All],2,0) -> JANVIER | M8: 7 | N8: Bordon Tarek | O8: 44 | P8: =COUNTIFS($D$5:$D$30000,"Bordon Tarek") -> 116 | Q8: =COUNTIFS($D$5:$D$30000,"Bordon Tarek",$H$5:$H$30000,"OK") -> 90 | R8: =COUNTIFS($D$5:$D$30000,"Bordon Tarek",$H$5:$H$30000,"NOK") -> 26 | S8: 0.775862069 | T8: 0.224137931 | Y8: S7 | Z8: FEVRIER | AB8: 411 | AC8: Echecs Autre | AD8: Commande annulée | AJ8: =IF(GRDV[[#This Row],[Synchro]]="OK",SUBTOTAL(3,GRDV[[#This Row],[Synchro]]),"") -> 1 | AK8: =IF(GRDV[[#This Row],[Synchro]]="NOK",SUBTOTAL(3,GRDV[[#This Row],[Synchro]]),"") -> 
A9: 1606 | B9: Raccordement avec synchro | C9: 2022-01-03T08:00:00 | D9: Ledormeur Eric | E9: ZMD | F9: 29 Finistere ZMD - Brest | G9: POTEAU | H9: OK | I9: =VLOOKUP(A:A,CODE[#All],2,0) -> Raccordée OK | J9: S1 | K9: =VLOOKUP(J:J,SEM[#All],2,0) -> JANVIER | M9: 8 | N9: Borni Haitem | O9: 44 | P9: =COUNTIFS($D$5:$D$30000,"Borni Haitem") -> 124 | Q9: =COUNTIFS($D$5:$D$30000,"Borni Haitem",$H$5:$H$30000,"OK") -> 81 | R9: =COUNTIFS($D$5:$D$30000,"Borni Haitem",$H$5:$H$30000,"NOK") -> 43 | S9: 0.6532258065 | T9: 0.3467741935 | Y9: S8 | Z9: FEVRIER | AB9: 412 | AC9: Echecs Techniques | AD9: Soudure éffectuée | AJ9: =IF(GRDV[[#This Row],[Synchro]]="OK",SUBTOTAL(3,GRDV[[#This Row],[Synchro]]),"") -> 1 | AK9: =IF(GRDV[[#This Row],[Synchro]]="NOK",SUBTOTAL(3,GRDV[[#This Row],[Synchro]]),"") -> 
A10: 1606 | B10: Raccordement avec synchro | C10: 2022-01-03T08:00:00 | D10: Borni Haitem | E10: RIP | F10: 44 LOIRE-ATLANTIQUE - HERIC RIP LOAN | G10: CHAMBRE | H10: OK | I10: =VLOOKUP(A:A,CODE[#All],2,0) -> Raccordée OK | J10: S1 | K10: =VLOOKUP(J:J,SEM[#All],2,0) -> JANVIER | M10: 9 | N10: Bouraya Riwan | O10: 29 | P10: =COUNTIFS($D$5:$D$30000,"Bouraya Riwan") -> 129 | Q10: =COUNTIFS($D$5:$D$30000,"Bouraya Riwan",$H$5:$H$30000,"OK") -> 106 | R10: =COUNTIFS($D$5:$D$30000,"Bouraya Riwan",$H$5:$H$30000,"NOK") -> 23 | S10: 0.8217054264 | T10: 0.1782945736 | Y10: S9 | Z10: MARS | AB10: 445 | AC10: Echecs Techniques | AD10: Problème rencontré sur la PTO | AJ10: =IF(GRDV[[#This Row],[Synchro]]="OK",SUBTOTAL(3,GRDV[[#This Row],[Synchro]]),"") -> 1 | AK10: =IF(GRDV[[#This Row],[Synchro]]="NOK",SUBTOTAL(3,GRDV[[#This Row],[Synchro]]),"") -> 
A11: 1606 | B11: Raccordement avec synchro | C11: 2022-01-03T08:00:00 | D11: Bordon Tarek | E11: RIP | F11: 44 LOIRE-ATLANTIQUE - CHATEAUBRIANT RIP LOAN | G11: POTEAU | H11: OK | I11: =VLOOKUP(A:A,CODE[#All],2,0) -> Raccordée OK | J11: S1 | K11: =VLOOKUP(J:J,SEM[#All],2,0) -> JANVIER | M11: 10 | N11: El Hayani Abdelhak | O11: 29 | Y11: S10 | Z11: MARS | AB11: 1010 | AC11: Echecs Autre | AD11: Abonnement FREE FIBRE en double | AJ11: =IF(GRDV[[#This Row],[Synchro]]="OK",SUBTOTAL(3,GRDV[[#This Row],[Synchro]]),"") -> 1 | AK11: =IF(GRDV[[#This Row],[Synchro]]="NOK",SUBTOTAL(3,GRDV[[#This Row],[Synchro]]),"") -> 
A12: 1606 | B12: Raccordement avec synchro | C12: 2022-01-03T08:00:00 | D12: Ishagthabit Madebo | E12: ZMD | F12: 29 Finistere ZMD - Douarnenez | G12: STANDARD | H12: OK | I12: =VLOOKUP(A:A,CODE[#All],2,0) -> Raccordée OK | J12: S1 | K12: =VLOOKUP(J:J,SEM[#All],2,0) -> JANVIER | M12: 11 | N12: Fanaoui Salah | O12: 29 | P12: =COUNTIFS($D$5:$D$30000,"Fanaoui Salah") -> 141 | Q12: =COUNTIFS($D$5:$D$30000,"Fanaoui Salah",$H$5:$H$30000,"OK") -> 110 | R12: =COUNTIFS($D$5:$D$30000,"Fanaoui Salah",$H$5:$H$30000,"NOK") -> 31 | S12: =(Q12/P12) -> 0.780141844 | T12: =(R12/P12) -> 0.219858156 | Y12: S11 | Z12: MARS | AB12: 1011 | AC12: Echecs Infra | AD12: Adresse érronnée | AJ12: =IF(GRDV[[#This Row],[Synchro]]="OK",SUBTOTAL(3,GRDV[[#This Row],[Synchro]]),"") -> 1 | AK12: =IF(GRDV[[#This Row],[Synchro]]="NOK",SUBTOTAL(3,GRDV[[#This Row],[Synchro]]),"") -> 
A13: 1606 | B13: Raccordement avec synchro | C13: 2022-01-03T08:00:00 | D13: Gaddour Neji | E13: ZMD | F13: 29 Finistere ZMD - Brest | G13: STANDARD | H13: OK | I13: =VLOOKUP(A:A,CODE[#All],2,0) -> Raccordée OK | J13: S1 | K13: =VLOOKUP(J:J,SEM[#All],2,0) -> JANVIER | M13: 12 | N13: Fiacques Nibesson | O13: 29 | P13: =COUNTIFS($D$5:$D$30000,"Fiacques Nibesson") -> 7 | Q13: =COUNTIFS($D$5:$D$30000,"Fiacques Nibesson",$H$5:$H$30000,"OK") -> 6 | R13: =COUNTIFS($D$5:$D$30000,"Fiacques Nibesson",$H$5:$H$30000,"NOK") -> 1 | S13: =(Q13/P13) -> 0.8571428571 | T13: =(R13/P13) -> 0.1428571429 | Y13: S12 | Z13: MARS | AB13: 1014 | AC13: Echecs Techniques | AD13: A requalifier | AJ13: =IF(GRDV[[#This Row],[Synchro]]="OK",SUBTOTAL(3,GRDV[[#This Row],[Synchro]]),"") -> 1 | AK13: =IF(GRDV[[#This Row],[Synchro]]="NOK",SUBTOTAL(3,GRDV[[#This Row],[Synchro]]),"") -> 
A14: 1606 | B14: Raccordement avec synchro | C14: 2022-01-03T08:00:00 | D14: Mebani Djamel | E14: ZMD | F14: 29 Finistere ZMD - Brest | G14: STANDARD | H14: =IF(A14>1606,"NOK",IF(A14<1606,"NOK",IF(A14=1606,"OK"))) -> OK | I14: =VLOOKUP(A:A,CODE[#All],2,0) -> Raccordée OK | J14: S1 | K14: =VLOOKUP(J:J,SEM[#All],2,0) -> JANVIER | M14: 13 | N14: Gaddour Neji | O14: 44 | P14: =COUNTIFS($D$5:$D$30000,"Gaddour Neji") -> 113 | Q14: =COUNTIFS($D$5:$D$30000,"Gaddour Neji",$H$5:$H$30000,"OK") -> 97 | R14: =COUNTIFS($D$5:$D$30000,"Gaddour Neji",$H$5:$H$30000,"NOK") -> 16 | S14: =(Q14/P14) -> 0.8584070796 | T14: =(R14/P14) -> 0.1415929204 | Y14: S13 | Z14: MARS | AB14: 1016 | AC14: Echecs Infra | AD14: Mauvaise adresse - Adresse érronnée confirmée | AJ14: =IF(GRDV[[#This Row],[Synchro]]="OK",SUBTOTAL(3,GRDV[[#This Row],[Synchro]]),"") -> 1 | AK14: =IF(GRDV[[#This Row],[Synchro]]="NOK",SUBTOTAL(3,GRDV[[#This Row],[Synchro]]),"") -> 
A15: 1606 | B15: Raccordement avec synchro | C15: 2022-01-03T09:00:00 | D15: Ishagthabit Madebo | E15: ZMD | F15: 29 Finistere ZMD - Douarnenez | G15: POTEAU | H15: OK | I15: =VLOOKUP(A:A,CODE[#All],2,0) -> Raccordée OK | J15: S1 | K15: =VLOOKUP(J:J,SEM[#All],2,0) -> JANVIER | M15: 14 | N15: Ginet Cyrille | O15: 29 | P15: =COUNTIFS($D$5:$D$30000,"Ginet Cyrille") -> 89 | Q15: =COUNTIFS($D$5:$D$30000,"Ginet Cyrille",$H$5:$H$30000,"OK") -> 70 | R15: =COUNTIFS($D$5:$D$30000,"Ginet Cyrille",$H$5:$H$30000,"NOK") -> 19 | S15: =(Q15/P15) -> 0.7865168539 | T15: =(R15/P15) -> 0.2134831461 | Y15: S14 | Z15: AVRIL | AB15: 1022 | AC15: Echecs Techniques | AD15: Client réalise les travaux | AJ15: =IF(GRDV[[#This Row],[Synchro]]="OK",SUBTOTAL(3,GRDV[[#This Row],[Synchro]]),"") -> 1 | AK15: =IF(GRDV[[#This Row],[Synchro]]="NOK",SUBTOTAL(3,GRDV[[#This Row],[Synchro]]),"") -> 
A16: 1606 | B16: Raccordement avec synchro | C16: 2022-01-03T10:00:00 | D16: Bouraya Riwan | E16: ZMD | F16: 29 Finistere ZMD - Brest | G16: STANDARD | H16: OK | I16: =VLOOKUP(A:A,CODE[#All],2,0) -> Raccordée OK | J16: S1 | K16: =VLOOKUP(J:J,SEM[#All],2,0) -> JANVIER | M16: 15 | N16: Gueguen Fabien | O16: 44 | P16: =COUNTIFS($D$5:$D$30000,"Gueguen Fabien") -> 0 | Q16: =COUNTIFS($D$5:$D$30000,"Gueguen Fabien",$H$5:$H$30000,"OK") -> 0 | R16: =COUNTIFS($D$5:$D$30000,"Gueguen Fabien",$H$5:$H$30000,"NOK") -> 0 | Y16: S15 | Z16: AVRIL | AB16: 1023 | AC16: Echecs Techniques | AD16: Refus tous travaux | AJ16: =IF(GRDV[[#This Row],[Synchro]]="OK",SUBTOTAL(3,GRDV[[#This Row],[Synchro]]),"") -> 1 | AK16: =IF(GRDV[[#This Row],[Synchro]]="NOK",SUBTOTAL(3,GRDV[[#This Row],[Synchro]]),"") -> 
A17: 1606 | B17: Raccordement avec synchro | C17: 2022-01-03T10:00:00 | D17: Fiacques Nibesson | E17: ZMD | F17: 29 Finistere ZMD - Brest | G17: STANDARD | H17: OK | I17: =VLOOKUP(A:A,CODE[#All],2,0) -> Raccordée OK | J17: S1 | K17: =VLOOKUP(J:J,SEM[#All],2,0) -> JANVIER | M17: 16 | N17: Ishagthabit Madebo | O17: 29 | P17: =COUNTIFS($D$5:$D$30000,"Ishagthabit Madebo") -> 58 | Q17: =COUNTIFS($D$5:$D$30000,"Ishagthabit Madebo",$H$5:$H$30000,"OK") -> 46 | R17: =COUNTIFS($D$5:$D$30000,"Ishagthabit Madebo",$H$5:$H$30000,"NOK") -> 12 | S17: =(Q17/P17) -> 0.7931034483 | T17: =(R17/P17) -> 0.2068965517 | Y17: S16 | Z17: AVRIL | AB17: 1024 | AC17: Echecs Techniques | AD17: Autorisation du propriétaire | AJ17: =IF(GRDV[[#This Row],[Synchro]]="OK",SUBTOTAL(3,GRDV[[#This Row],[Synchro]]),"") -> 1 | AK17: =IF(GRDV[[#This Row],[Synchro]]="NOK",SUBTOTAL(3,GRDV[[#This Row],[Synchro]]),"") -> 
A18: 407 | B18: Client absent | C18: 2022-01-03T11:00:00 | D18: Mebani Djamel | E18: ZMD | F18: 29 Finistere ZMD - Brest | G18: STANDARD | H18: NOK | I18: =VLOOKUP(A:A,CODE[#All],2,0) -> Echecs Client | J18: S1 | K18: =VLOOKUP(J:J,SEM[#All],2,0) -> JANVIER | M18: 17 | N18: Ledormeur Eric | O18: 29 | P18: =COUNTIFS($D$5:$D$30000,"Ledormeur Eric") -> 8 | Q18: =COUNTIFS($D$5:$D$30000,"Ledormeur Eric",$H$5:$H$30000,"OK") -> 7 | R18: =COUNTIFS($D$5:$D$30000,"Ledormeur Eric",$H$5:$H$30000,"NOK") -> 1 | S18: =(Q18/P18) -> 0.875 | T18: =(R18/P18) -> 0.125 | Y18: S17 | Z18: AVRIL | AB18: 1025 | AC18: Echecs Infra | AD18: Mauvaise adresse - Adresse non éligible | AJ18: =IF(GRDV[[#This Row],[Synchro]]="OK",SUBTOTAL(3,GRDV[[#This Row],[Synchro]]),"") ->  | AK18: =IF(GRDV[[#This Row],[Synchro]]="NOK",SUBTOTAL(3,GRDV[[#This Row],[Synchro]]),"") -> 1
A19: 1606 | B19: Raccordement avec synchro | C19: 2022-01-03T11:00:00 | D19: Bordon Tarek | E19: RIP | F19: 44 LOIRE-ATLANTIQUE - CHATEAUBRIANT RIP LOAN | G19: POTEAU | H19: OK | I19: =VLOOKUP(A:A,CODE[#All],2,0) -> Raccordée OK | J19: S1 | K19: =VLOOKUP(J:J,SEM[#All],2,0) -> JANVIER | M19: 18 | N19: Lefkir Areski | O19: 29 | P19: =COUNTIFS($D$5:$D$30000,"Lefkir Areski") -> 21 | Q19: =COUNTIFS($D$5:$D$30000,"Lefkir Areski",$H$5:$H$30000,"OK") -> 15 | R19: =COUNTIFS($D$5:$D$30000,"Lefkir Areski",$H$5:$H$30000,"NOK") -> 6 | S19: =(Q19/P19) -> 0.7142857143 | T19: =(R19/P19) -> 0.2857142857 | Y19: S18 | Z19: MAI | AB19: 1029 | AC19: Echecs Accès | AD19: Accès nécessitant un arreté de voirie | AJ19: =IF(GRDV[[#This Row],[Synchro]]="OK",SUBTOTAL(3,GRDV[[#This Row],[Synchro]]),"") -> 1 | AK19: =IF(GRDV[[#This Row],[Synchro]]="NOK",SUBTOTAL(3,GRDV[[#This Row],[Synchro]]),"") -> 
A20: 1773 | B20: Fourreau à déboucher (extérieur) | C20: 2022-01-03T11:00:00 | D20: Bary Alimou | E20: RIP | F20: 44 LOIRE-ATLANTIQUE - HERIC RIP LOAN | G20: CHAMBRE | H20: NOK | I20: =VLOOKUP(A:A,CODE[#All],2,0) -> Echecs Techniques | J20: S1 | K20: =VLOOKUP(J:J,SEM[#All],2,0) -> JANVIER | M20: 19 | N20: Mebani Djamel | O20: 29 | P20: =COUNTIFS($D$5:$D$30000,"Mebani Djamel") -> 135 | Q20: =COUNTIFS($D$5:$D$30000,"Mebani Djamel",$H$5:$H$30000,"OK") -> 110 | R20: =COUNTIFS($D$5:$D$30000,"Mebani Djamel",$H$5:$H$30000,"NOK") -> 25 | S20: =(Q20/P20) -> 0.8148148148 | T20: =(R20/P20) -> 0.1851851852 | Y20: S19 | Z20: MAI | AB20: 1112 | AC20: Echecs Infra | AD20: Refus mutation ( fibres dispos )- Refus mutation | AJ20: =IF(GRDV[[#This Row],[Synchro]]="OK",SUBTOTAL(3,GRDV[[#This Row],[Synchro]]),"") ->  | AK20: =IF(GRDV[[#This Row],[Synchro]]="NOK",SUBTOTAL(3,GRDV[[#This Row],[Synchro]]),"") -> 1
A21: 1606 | B21: Raccordement avec synchro | C21: 2022-01-03T11:00:00 | D21: Borni Haitem | E21: RIP | F21: 44 LOIRE-ATLANTIQUE - HERIC RIP LOAN | G21: CHAMBRE | H21: OK | I21: =VLOOKUP(A:A,CODE[#All],2,0) -> Raccordée OK | J21: S1 | K21: =VLOOKUP(J:J,SEM[#All],2,0) -> JANVIER | M21: 20 | N21: Nberametameur Noufel | O21: 29 | Y21: S20 | Z21: MAI | AB21: 1306 | AC21: Echecs Infra | AD21: Retour reprovisionning | AJ21: =IF(GRDV[[#This Row],[Synchro]]="OK",SUBTOTAL(3,GRDV[[#This Row],[Synchro]]),"") -> 1 | AK21: =IF(GRDV[[#This Row],[Synchro]]="NOK",SUBTOTAL(3,GRDV[[#This Row],[Synchro]]),"") -> 
A22: 1606 | B22: Raccordement avec synchro | C22: 2022-01-03T11:00:00 | D22: Ishagthabit Madebo | E22: ZMD | F22: 29 Finistere ZMD - Douarnenez | G22: POTEAU | H22: OK | I22: =VLOOKUP(A:A,CODE[#All],2,0) -> Raccordée OK | J22: S1 | K22: =VLOOKUP(J:J,SEM[#All],2,0) -> JANVIER | M22: 21 | N22: Uguen Nicolas | O22: 29 | P22: =COUNTIFS($D$5:$D$30000,"Uguen Nicolas") -> 140 | Q22: =COUNTIFS($D$5:$D$30000,"Uguen Nicolas",$H$5:$H$30000,"OK") -> 111 | R22: =COUNTIFS($D$5:$D$30000,"Uguen Nicolas",$H$5:$H$30000,"NOK") -> 29 | S22: =(Q22/P22) -> 0.7928571429 | T22: =(R22/P22) -> 0.2071428571 | Y22: S21 | Z22: MAI | AB22: 1307 | AC22: Echecs Techniques | AD22: Non cloturé | AJ22: =IF(GRDV[[#This Row],[Synchro]]="OK",SUBTOTAL(3,GRDV[[#This Row],[Synchro]]),"") -> 1 | AK22: =IF(GRDV[[#This Row],[Synchro]]="NOK",SUBTOTAL(3,GRDV[[#This Row],[Synchro]]),"") -> 
A23: 1606 | B23: Raccordement avec synchro | C23: 2022-01-03T11:00:00 | D23: Bachar Abdoulrahim | E23: RIP | F23: 44 LOIRE-ATLANTIQUE - CHATEAUBRIANT RIP LOAN | G23: CHAMBRE | H23: OK | I23: =VLOOKUP(A:A,CODE[#All],2,0) -> Raccordée OK | J23: S1 | K23: =VLOOKUP(J:J,SEM[#All],2,0) -> JANVIER | M23: 22 | N23: Zerguini Oudherguine | O23: 29 | P23: =COUNTIFS($D$5:$D$30000,"Zerguini Oudherguine") -> 7 | Q23: =COUNTIFS($D$5:$D$30000,"Zerguini Oudherguine",$H$5:$H$30000,"OK") -> 6 | R23: =COUNTIFS($D$5:$D$30000,"Zerguini Oudherguine",$H$5:$H$30000,"NOK") -> 1 | S23: =(Q23/P23) -> 0.8571428571 | T23: =(R23/P23) -> 0.1428571429 | Y23: S22 | Z23: JUIN | AB23: 1316 | AC23: Echecs Techniques | AD23: Non cloturé - Pas d'appel CA | AJ23: =IF(GRDV[[#This Row],[Synchro]]="OK",SUBTOTAL(3,GRDV[[#This Row],[Synchro]]),"") -> 1 | AK23: =IF(GRDV[[#This Row],[Synchro]]="NOK",SUBTOTAL(3,GRDV[[#This Row],[Synchro]]),"") -> 
A24: 1606 | B24: Raccordement avec synchro | C24: 2022-01-03T11:00:00 | D24: Uguen Nicolas | E24: ZMD | F24: 29 Finistere ZMD - Brest | G24: POTEAU | H24: OK | I24: =VLOOKUP(A:A,CODE[#All],2,0) -> Raccordée OK | J24: S1 | K24: =VLOOKUP(J:J,SEM[#All],2,0) -> JANVIER | Y24: S23 | Z24: JUIN | AB24: 1505 | AC24: Echecs Client | AD24: Client absent | AJ24: =IF(GRDV[[#This Row],[Synchro]]="OK",SUBTOTAL(3,GRDV[[#This Row],[Synchro]]),"") -> 1 | AK24: =IF(GRDV[[#This Row],[Synchro]]="NOK",SUBTOTAL(3,GRDV[[#This Row],[Synchro]]),"") -> 
A25: 1606 | B25: Raccordement avec synchro | C25: 2022-01-03T11:00:00 | D25: Ledormeur Eric | E25: ZMD | F25: 29 Finistere ZMD - Brest | G25: POTEAU | H25: OK | I25: =VLOOKUP(A:A,CODE[#All],2,0) -> Raccordée OK | J25: S1 | K25: =VLOOKUP(J:J,SEM[#All],2,0) -> JANVIER | Y25: S24 | Z25: JUIN | AB25: 1509 | AC25: Echecs Techniques | AD25: Non cloturé | AJ25: =IF(GRDV[[#This Row],[Synchro]]="OK",SUBTOTAL(3,GRDV[[#This Row],[Synchro]]),"") -> 1 | AK25: =IF(GRDV[[#This Row],[Synchro]]="NOK",SUBTOTAL(3,GRDV[[#This Row],[Synchro]]),"") -> 
A26: 1606 | B26: Raccordement avec synchro | C26: 2022-01-03T11:00:00 | D26: Belgacem Amine | E26: RIP | F26: 44 LOIRE-ATLANTIQUE - HERIC RIP LOAN | G26: POTEAU | H26: OK | I26: =VLOOKUP(A:A,CODE[#All],2,0) -> Raccordée OK | J26: S1 | K26: =VLOOKUP(J:J,SEM[#All],2,0) -> JANVIER | Y26: S25 | Z26: JUIN | AB26: 1511 | AC26: Echecs Techniques | AD26: Non cloturé - Pas d'appel CA | AJ26: =IF(GRDV[[#This Row],[Synchro]]="OK",SUBTOTAL(3,GRDV[[#This Row],[Synchro]]),"") -> 1 | AK26: =IF(GRDV[[#This Row],[Synchro]]="NOK",SUBTOTAL(3,GRDV[[#This Row],[Synchro]]),"") -> 
A27: 1606 | B27: Raccordement avec synchro | C27: 2022-01-03T13:00:00 | D27: Gaddour Neji | E27: ZMD | F27: 29 Finistere ZMD - Brest | G27: STANDARD | H27: OK | I27: =VLOOKUP(A:A,CODE[#All],2,0) -> Raccordée OK | J27: S1 | K27: =VLOOKUP(J:J,SEM[#All],2,0) -> JANVIER | Y27: S26 | Z27: JUIN | AB27: 1602 | AC27: Raccordée OK | AD27: PTO raccordé avec synchro | AJ27: =IF(GRDV[[#This Row],[Synchro]]="OK",SUBTOTAL(3,GRDV[[#This Row],[Synchro]]),"") -> 1 | AK27: =IF(GRDV[[#This Row],[Synchro]]="NOK",SUBTOTAL(3,GRDV[[#This Row],[Synchro]]),"") -> 
A28: 407 | B28: Client absent | C28: 2022-01-03T13:00:00 | D28: Bouraya Riwan | E28: ZMD | F28: 29 Finistere ZMD - Brest | G28: STANDARD | H28: NOK | I28: =VLOOKUP(A:A,CODE[#All],2,0) -> Echecs Client | J28: S1 | K28: =VLOOKUP(J:J,SEM[#All],2,0) -> JANVIER | Y28: S27 | Z28: JUILLET | AB28: 1603 | AC28: Raccordée OK | AD28: PTO raccordé sans cablage | AJ28: =IF(GRDV[[#This Row],[Synchro]]="OK",SUBTOTAL(3,GRDV[[#This Row],[Synchro]]),"") ->  | AK28: =IF(GRDV[[#This Row],[Synchro]]="NOK",SUBTOTAL(3,GRDV[[#This Row],[Synchro]]),"") -> 1
A29: 321 | B29: RDV non honoré | C29: 2022-01-03T14:00:00 | D29: Ishagthabit Madebo | E29: ZMD | F29: 29 Finistere ZMD - Douarnenez | G29: CHAMBRE | H29: NOK | I29: =VLOOKUP(A:A,CODE[#All],2,0) -> Echecs Techniques | J29: S1 | K29: =VLOOKUP(J:J,SEM[#All],2,0) -> JANVIER | Y29: S28 | Z29: JUILLET | AB29: 1606 | AC29: Raccordée OK | AD29: PTO raccordé avec synchro | AJ29: =IF(GRDV[[#This Row],[Synchro]]="OK",SUBTOTAL(3,GRDV[[#This Row],[Synchro]]),"") ->  | AK29: =IF(GRDV[[#This Row],[Synchro]]="NOK",SUBTOTAL(3,GRDV[[#This Row],[Synchro]]),"") -> 1
A30: 407 | B30: Client absent | C30: 2022-01-03T14:00:00 | D30: Uguen Nicolas | E30: ZMD | F30: 29 Finistere ZMD - Brest | G30: POTEAU | H30: NOK | I30: =VLOOKUP(A:A,CODE[#All],2,0) -> Echecs Client | J30: S1 | K30: =VLOOKUP(J:J,SEM[#All],2,0) -> JANVIER | Y30: S29 | Z30: JUILLET | AB30: 1608 | AC30: Raccordée OK | AD30: PTO raccordé sans synchro b- Attente audit | AJ30: =IF(GRDV[[#This Row],[Synchro]]="OK",SUBTOTAL(3,GRDV[[#This Row],[Synchro]]),"") ->  | AK30: =IF(GRDV[[#This Row],[Synchro]]="NOK",SUBTOTAL(3,GRDV[[#This Row],[Synchro]]),"") -> 1
A31: 1606 | B31: Raccordement avec synchro | C31: 2022-01-03T14:00:00 | D31: Mebani Djamel | E31: ZMD | F31: 29 Finistere ZMD - Brest | G31: STANDARD | H31: OK | I31: =VLOOKUP(A:A,CODE[#All],2,0) -> Raccordée OK | J31: S1 | K31: =VLOOKUP(J:J,SEM[#All],2,0) -> JANVIER | Y31: S30 | Z31: JUILLET | AB31: 1609 | AC31: Raccordée OK | AD31: PTO raccordé - Client résilie | AJ31: =IF(GRDV[[#This Row],[Synchro]]="OK",SUBTOTAL(3,GRDV[[#This Row],[Synchro]]),"") -> 1 | AK31: =IF(GRDV[[#This Row],[Synchro]]="NOK",SUBTOTAL(3,GRDV[[#This Row],[Synchro]]),"") -> 
A32: 1776 | B32: Tranchée à réaliser (extérieur) | C32: 2022-01-03T14:00:00 | D32: Borni Haitem | E32: RIP | F32: 44 LOIRE-ATLANTIQUE - HERIC RIP LOAN | G32: CHAMBRE | H32: NOK | I32: =VLOOKUP(A:A,CODE[#All],2,0) -> Echecs Techniques | J32: S1 | K32: =VLOOKUP(J:J,SEM[#All],2,0) -> JANVIER | Y32: S31 | Z32: AOUT | AB32: 1610 | AC32: Raccordée OK | AD32: PTO raccordé - Responsabilité client | AJ32: =IF(GRDV[[#This Row],[Synchro]]="OK",SUBTOTAL(3,GRDV[[#This Row],[Synchro]]),"") ->  | AK32: =IF(GRDV[[#This Row],[Synchro]]="NOK",SUBTOTAL(3,GRDV[[#This Row],[Synchro]]),"") -> 1
A33: 1606 | B33: Raccordement avec synchro | C33: 2022-01-03T14:00:00 | D33: Bary Alimou | E33: RIP | F33: 44 LOIRE-ATLANTIQUE - HERIC RIP LOAN | G33: CHAMBRE | H33: OK | I33: =VLOOKUP(A:A,CODE[#All],2,0) -> Raccordée OK | J33: S1 | K33: =VLOOKUP(J:J,SEM[#All],2,0) -> JANVIER | Y33: S32 | Z33: AOUT | AB33: 1697 | AC33: Echecs Techniques | AD33: Non cloturé | AJ33: =IF(GRDV[[#This Row],[Synchro]]="OK",SUBTOTAL(3,GRDV[[#This Row],[Synchro]]),"") -> 1 | AK33: =IF(GRDV[[#This Row],[Synchro]]="NOK",SUBTOTAL(3,GRDV[[#This Row],[Synchro]]),"") -> 
A34: 1606 | B34: Raccordement avec synchro | C34: 2022-01-03T14:00:00 | D34: Bachar Abdoulrahim | E34: RIP | F34: 44 LOIRE-ATLANTIQUE - CHATEAUBRIANT RIP LOAN | G34: CHAMBRE | H34: OK | I34: =VLOOKUP(A:A,CODE[#All],2,0) -> Raccordée OK | J34: S1 | K34: =VLOOKUP(J:J,SEM[#All],2,0) -> JANVIER | Y34: S33 | Z34: AOUT | AB34: 1698 | AC34: Echecs Client | AD34: Client absent | AJ34: =IF(GRDV[[#This Row],[Synchro]]="OK",SUBTOTAL(3,GRDV[[#This Row],[Synchro]]),"") -> 1 | AK34: =IF(GRDV[[#This Row],[Synchro]]="NOK",SUBTOTAL(3,GRDV[[#This Row],[Synchro]]),"") -> 
A35: 1606 | B35: Raccordement avec synchro | C35: 2022-01-03T14:00:00 | D35: Bordon Tarek | E35: RIP | F35: 44 LOIRE-ATLANTIQUE - CHATEAUBRIANT RIP LOAN | G35: POTEAU | H35: OK | I35: =VLOOKUP(A:A,CODE[#All],2,0) -> Raccordée OK | J35: S1 | K35: =VLOOKUP(J:J,SEM[#All],2,0) -> JANVIER | Y35: S34 | Z35: AOUT | AB35: 1703 | AC35: Echecs Techniques | AD35: RDV Post prod avec client | AJ35: =IF(GRDV[[#This Row],[Synchro]]="OK",SUBTOTAL(3,GRDV[[#This Row],[Synchro]]),"") -> 1 | AK35: =IF(GRDV[[#This Row],[Synchro]]="NOK",SUBTOTAL(3,GRDV[[#This Row],[Synchro]]),"") -> 
A36: 407 | B36: Client absent | C36: 2022-01-03T14:00:00 | D36: Ledormeur Eric | E36: ZMD | F36: 29 Finistere ZMD - Brest | G36: FACADE | H36: NOK | I36: =VLOOKUP(A:A,CODE[#All],2,0) -> Echecs Client | J36: S1 | K36: =VLOOKUP(J:J,SEM[#All],2,0) -> JANVIER | Y36: S35 | Z36: SEPTEMBRE | AB36: 1704 | AC36: Echecs Techniques | AD36: Postprod OK | AJ36: =IF(GRDV[[#This Row],[Synchro]]="OK",SUBTOTAL(3,GRDV[[#This Row],[Synchro]]),"") ->  | AK36: =IF(GRDV[[#This Row],[Synchro]]="NOK",SUBTOTAL(3,GRDV[[#This Row],[Synchro]]),"") -> 1
A37: 1606 | B37: Raccordement avec synchro | C37: 2022-01-03T15:00:00 | D37: Gaddour Neji | E37: ZMD | F37: 29 Finistere ZMD - Brest | G37: STANDARD | H37: OK | I37: =VLOOKUP(A:A,CODE[#All],2,0) -> Raccordée OK | J37: S1 | K37: =VLOOKUP(J:J,SEM[#All],2,0) -> JANVIER | Y37: S36 | Z37: SEPTEMBRE | AB37: 1711 | AC37: Echecs Techniques | AD37: Non cloturé - Pas d'appel CA | AJ37: =IF(GRDV[[#This Row],[Synchro]]="OK",SUBTOTAL(3,GRDV[[#This Row],[Synchro]]),"") -> 1 | AK37: =IF(GRDV[[#This Row],[Synchro]]="NOK",SUBTOTAL(3,GRDV[[#This Row],[Synchro]]),"") -> 
A38: 1606 | B38: Raccordement avec synchro | C38: 2022-01-03T15:00:00 | D38: Fiacques Nibesson | E38: ZMD | F38: 29 Finistere ZMD - Brest | G38: STANDARD | H38: OK | I38: =VLOOKUP(A:A,CODE[#All],2,0) -> Raccordée OK | J38: S1 | K38: =VLOOKUP(J:J,SEM[#All],2,0) -> JANVIER | Y38: S37 | Z38: SEPTEMBRE | AB38: 1712 | AC38: Echecs Techniques | AD38: Refus emplacement PTO | AJ38: =IF(GRDV[[#This Row],[Synchro]]="OK",SUBTOTAL(3,GRDV[[#This Row],[Synchro]]),"") -> 1 | AK38: =IF(GRDV[[#This Row],[Synchro]]="NOK",SUBTOTAL(3,GRDV[[#This Row],[Synchro]]),"") -> 
A39: 1606 | B39: Raccordement avec synchro | C39: 2022-01-03T16:00:00 | D39: Bouraya Riwan | E39: ZMD | F39: 29 Finistere ZMD - Brest | G39: STANDARD | H39: OK | I39: =VLOOKUP(A:A,CODE[#All],2,0) -> Raccordée OK | J39: S1 | K39: =VLOOKUP(J:J,SEM[#All],2,0) -> JANVIER | Y39: S38 | Z39: SEPTEMBRE | AB39: 1713 | AC39: Echecs Accès | AD39: Acces refusé ( Syndic, copro ) | AJ39: =IF(GRDV[[#This Row],[Synchro]]="OK",SUBTOTAL(3,GRDV[[#This Row],[Synchro]]),"") -> 1 | AK39: =IF(GRDV[[#This Row],[Synchro]]="NOK",SUBTOTAL(3,GRDV[[#This Row],[Synchro]]),"") -> 
A40: 1606 | B40: Raccordement avec synchro | C40: 2022-01-04T08:00:00 | D40: Borni Haitem | E40: RIP | F40: 44 LOIRE-ATLANTIQUE - HERIC RIP LOAN | G40: STANDARD | H40: OK | I40: =VLOOKUP(A:A,CODE[#All],2,0) -> Raccordée OK | J40: S1 | K40: =VLOOKUP(J:J,SEM[#All],2,0) -> JANVIER | Y40: S39 | Z40: SEPTEMBRE | AB40: 1716 | AC40: Echecs Techniques | AD40: Fourreaux bouchés | AJ40: =IF(GRDV[[#This Row],[Synchro]]="OK",SUBTOTAL(3,GRDV[[#This Row],[Synchro]]),"") -> 1 | AK40: =IF(GRDV[[#This Row],[Synchro]]="NOK",SUBTOTAL(3,GRDV[[#This Row],[Synchro]]),"") -> 
A41: 1606 | B41: Raccordement avec synchro | C41: 2022-01-04T08:00:00 | D41: Bary Alimou | E41: RIP | F41: 44 LOIRE-ATLANTIQUE - HERIC RIP LOAN | G41: CHAMBRE | H41: OK | I41: =VLOOKUP(A:A,CODE[#All],2,0) -> Raccordée OK | J41: S1 | K41: =VLOOKUP(J:J,SEM[#All],2,0) -> JANVIER | Y41: S40 | Z41: OCTOBRE | AB41: 1717 | AC41: Echecs Client | AD41: Création cheminement interieur | AJ41: =IF(GRDV[[#This Row],[Synchro]]="OK",SUBTOTAL(3,GRDV[[#This Row],[Synchro]]),"") -> 1 | AK41: =IF(GRDV[[#This Row],[Synchro]]="NOK",SUBTOTAL(3,GRDV[[#This Row],[Synchro]]),"") -> 
A42: 1606 | B42: Raccordement avec synchro | C42: 2022-01-04T08:00:00 | D42: Bouraya Riwan | E42: ZMD | F42: 29 Finistere ZMD - Brest | G42: POTEAU | H42: OK | I42: =VLOOKUP(A:A,CODE[#All],2,0) -> Raccordée OK | J42: S1 | K42: =VLOOKUP(J:J,SEM[#All],2,0) -> JANVIER | Y42: S41 | Z42: OCTOBRE | AB42: 1718 | AC42: Echecs Techniques | AD42: Grande hauteur PTO - Autre dispositif sécurisé | AJ42: =IF(GRDV[[#This Row],[Synchro]]="OK",SUBTOTAL(3,GRDV[[#This Row],[Synchro]]),"") -> 1 | AK42: =IF(GRDV[[#This Row],[Synchro]]="NOK",SUBTOTAL(3,GRDV[[#This Row],[Synchro]]),"") -> 
A43: 1606 | B43: Raccordement avec synchro | C43: 2022-01-04T08:00:00 | D43: Bordon Tarek | E43: RIP | F43: 44 LOIRE-ATLANTIQUE - CHATEAUBRIANT RIP LOAN | G43: POTEAU | H43: OK | I43: =VLOOKUP(A:A,CODE[#All],2,0) -> Raccordée OK | J43: S1 | K43: =VLOOKUP(J:J,SEM[#All],2,0) -> JANVIER | Y43: S42 | Z43: OCTOBRE | AB43: 1720 | AC43: Echecs Techniques | AD43: Grande hauteur PTO - Nacelle | AJ43: =IF(GRDV[[#This Row],[Synchro]]="OK",SUBTOTAL(3,GRDV[[#This Row],[Synchro]]),"") -> 1 | AK43: =IF(GRDV[[#This Row],[Synchro]]="NOK",SUBTOTAL(3,GRDV[[#This Row],[Synchro]]),"") -> 
A44: 1606 | B44: Raccordement avec synchro | C44: 2022-01-04T08:00:00 | D44: Bachar Abdoulrahim | E44: RIP | F44: 44 LOIRE-ATLANTIQUE - CHATEAUBRIANT RIP LOAN | G44: CHAMBRE | H44: OK | I44: =VLOOKUP(A:A,CODE[#All],2,0) -> Raccordée OK | J44: S1 | K44: =VLOOKUP(J:J,SEM[#All],2,0) -> JANVIER | Y44: S43 | Z44: OCTOBRE | AB44: 1721 | AC44: Echecs Techniques | AD44: Grande hauteur PTO - Nacelle + Autre dispositif | AJ44: =IF(GRDV[[#This Row],[Synchro]]="OK",SUBTOTAL(3,GRDV[[#This Row],[Synchro]]),"") -> 1 | AK44: =IF(GRDV[[#This Row],[Synchro]]="NOK",SUBTOTAL(3,GRDV[[#This Row],[Synchro]]),"") -> 
A45: 1741 | B45: Etape 2-3 | C45: 2022-01-04T08:00:00 | D45: Uguen Nicolas | E45: ZMD | F45: 29 Finistere ZMD - Douarnenez | G45: POTEAU | H45: NOK | I45: =VLOOKUP(A:A,CODE[#All],2,0) -> Echecs Infra | J45: S1 | K45: =VLOOKUP(J:J,SEM[#All],2,0) -> JANVIER | Y45: S44 | Z45: NOVEMBRE | AB45: 1722 | AC45: Echecs Techniques | AD45: Murs trop épais | AJ45: =IF(GRDV[[#This Row],[Synchro]]="OK",SUBTOTAL(3,GRDV[[#This Row],[Synchro]]),"") ->  | AK45: =IF(GRDV[[#This Row],[Synchro]]="NOK",SUBTOTAL(3,GRDV[[#This Row],[Synchro]]),"") -> 1
A46: 1773 | B46: Fourreau à déboucher (extérieur) | C46: 2022-01-04T08:00:00 | D46: Belgacem Amine | E46: RIP | F46: 44 LOIRE-ATLANTIQUE - HERIC RIP LOAN | G46: POTEAU | H46: NOK | I46: =VLOOKUP(A:A,CODE[#All],2,0) -> Echecs Techniques | J46: S1 | K46: =VLOOKUP(J:J,SEM[#All],2,0) -> JANVIER | Y46: S45 | Z46: NOVEMBRE | AB46: 1723 | AC46: Echecs Techniques | AD46: Palier trop épais | AJ46: =IF(GRDV[[#This Row],[Synchro]]="OK",SUBTOTAL(3,GRDV[[#This Row],[Synchro]]),"") ->  | AK46: =IF(GRDV[[#This Row],[Synchro]]="NOK",SUBTOTAL(3,GRDV[[#This Row],[Synchro]]),"") -> 1
A47: 1743 | B47: Free (freebox) | C47: 2022-01-04T08:00:00 | D47: Ginet Cyrille | E47: ZMD | F47: 29 Finistere ZMD - Morlaix | G47: CHAMBRE | H47: NOK | I47: =VLOOKUP(A:A,CODE[#All],2,0) -> Echecs Autre | J47: S1 | K47: =VLOOKUP(J:J,SEM[#All],2,0) -> JANVIER | Y47: S46 | Z47: NOVEMBRE | AB47: 1724 | AC47: Echecs Techniques | AD47: Materiaux rendant impossible le percement | AJ47: =IF(GRDV[[#This Row],[Synchro]]="OK",SUBTOTAL(3,GRDV[[#This Row],[Synchro]]),"") ->  | AK47: =IF(GRDV[[#This Row],[Synchro]]="NOK",SUBTOTAL(3,GRDV[[#This Row],[Synchro]]),"") -> 1
A48: 1773 | B48: Fourreau à déboucher (extérieur) | C48: 2022-01-04T08:00:00 | D48: Fiacques Nibesson | E48: ZMD | F48: 29 Finistere ZMD - Brest | G48: POTEAU | H48: NOK | I48: =VLOOKUP(A:A,CODE[#All],2,0) -> Echecs Techniques | J48: S1 | K48: =VLOOKUP(J:J,SEM[#All],2,0) -> JANVIER | Y48: S47 | Z48: NOVEMBRE | AB48: 1725 | AC48: Echecs Infra | AD48: Tube / Fibre HS | AJ48: =IF(GRDV[[#This Row],[Synchro]]="OK",SUBTOTAL(3,GRDV[[#This Row],[Synchro]]),"") ->  | AK48: =IF(GRDV[[#This Row],[Synchro]]="NOK",SUBTOTAL(3,GRDV[[#This Row],[Synchro]]),"") -> 1
A49: 1606 | B49: Raccordement avec synchro | C49: 2022-01-04T10:00:00 | D49: Ishagthabit Madebo | E49: ZMD | F49: 29 Finistere ZMD - Concarneau | G49: STANDARD | H49: OK | I49: =VLOOKUP(A:A,CODE[#All],2,0) -> Raccordée OK | J49: S1 | K49: =VLOOKUP(J:J,SEM[#All],2,0) -> JANVIER | Y49: S48 | Z49: DECEMBRE | AB49: 1726 | AC49: Echecs Infra | AD49: Pas de fibre disponible | AJ49: =IF(GRDV[[#This Row],[Synchro]]="OK",SUBTOTAL(3,GRDV[[#This Row],[Synchro]]),"") -> 1 | AK49: =IF(GRDV[[#This Row],[Synchro]]="NOK",SUBTOTAL(3,GRDV[[#This Row],[Synchro]]),"") -> 
A50: 1606 | B50: Raccordement avec synchro | C50: 2022-01-04T10:00:00 | D50: Fiacques Nibesson | E50: ZMD | F50: 29 Finistere ZMD - Brest | G50: STANDARD | H50: OK | I50: =VLOOKUP(A:A,CODE[#All],2,0) -> Raccordée OK | J50: S1 | K50: =VLOOKUP(J:J,SEM[#All],2,0) -> JANVIER | Y50: S49 | Z50: DECEMBRE | AB50: 1727 | AC50: Echecs Techniques | AD50: PBO en hauteur | AJ50: =IF(GRDV[[#This Row],[Synchro]]="OK",SUBTOTAL(3,GRDV[[#This Row],[Synchro]]),"") -> 1 | AK50: =IF(GRDV[[#This Row],[Synchro]]="NOK",SUBTOTAL(3,GRDV[[#This Row],[Synchro]]),"") -> 
A51: 1606 | B51: Raccordement avec synchro | C51: 2022-01-04T10:00:00 | D51: Gaddour Neji | E51: ZMD | F51: 29 Finistere ZMD - Brest | G51: STANDARD | H51: OK | I51: =VLOOKUP(A:A,CODE[#All],2,0) -> Raccordée OK | J51: S1 | K51: =VLOOKUP(J:J,SEM[#All],2,0) -> JANVIER | Y51: S50 | Z51: DECEMBRE | AB51: 1728 | AC51: Echecs Infra | AD51: Pas de signal coté Free | AJ51: =IF(GRDV[[#This Row],[Synchro]]="OK",SUBTOTAL(3,GRDV[[#This Row],[Synchro]]),"") -> 1 | AK51: =IF(GRDV[[#This Row],[Synchro]]="NOK",SUBTOTAL(3,GRDV[[#This Row],[Synchro]]),"") -> 
A52: 1606 | B52: Raccordement avec synchro | C52: 2022-01-04T11:00:00 | D52: Belgacem Amine | E52: RIP | F52: 44 LOIRE-ATLANTIQUE - HERIC RIP LOAN | G52: FACADE | H52: OK | I52: =VLOOKUP(A:A,CODE[#All],2,0) -> Raccordée OK | J52: S1 | K52: =VLOOKUP(J:J,SEM[#All],2,0) -> JANVIER | Y52: S51 | Z52: DECEMBRE | AB52: 1729 | AC52: Raccordée OK | AD52: PTO existante mais à remplaver | AJ52: =IF(GRDV[[#This Row],[Synchro]]="OK",SUBTOTAL(3,GRDV[[#This Row],[Synchro]]),"") -> 1 | AK52: =IF(GRDV[[#This Row],[Synchro]]="NOK",SUBTOTAL(3,GRDV[[#This Row],[Synchro]]),"") -> 
A53: 1606 | B53: Raccordement avec synchro | C53: 2022-01-04T11:00:00 | D53: Bary Alimou | E53: RIP | F53: 44 LOIRE-ATLANTIQUE - HERIC RIP LOAN | G53: CHAMBRE | H53: OK | I53: =VLOOKUP(A:A,CODE[#All],2,0) -> Raccordée OK | J53: S1 | K53: =VLOOKUP(J:J,SEM[#All],2,0) -> JANVIER | Y53: S52 | Z53: DECEMBRE | AB53: 1730 | AC53: Echecs Techniques | AD53: Cave privée | AJ53: =IF(GRDV[[#This Row],[Synchro]]="OK",SUBTOTAL(3,GRDV[[#This Row],[Synchro]]),"") -> 1 | AK53: =IF(GRDV[[#This Row],[Synchro]]="NOK",SUBTOTAL(3,GRDV[[#This Row],[Synchro]]),"") -> 
A54: 1606 | B54: Raccordement avec synchro | C54: 2022-01-04T11:00:00 | D54: Bachar Abdoulrahim | E54: RIP | F54: 44 LOIRE-ATLANTIQUE - CHATEAUBRIANT RIP LOAN | G54: CHAMBRE | H54: OK | I54: =VLOOKUP(A:A,CODE[#All],2,0) -> Raccordée OK | J54: S1 | K54: =VLOOKUP(J:J,SEM[#All],2,0) -> JANVIER | AB54: 1731 | AC54: Echecs Accès | AD54: Clef chez le syndic | AJ54: =IF(GRDV[[#This Row],[Synchro]]="OK",SUBTOTAL(3,GRDV[[#This Row],[Synchro]]),"") -> 1 | AK54: =IF(GRDV[[#This Row],[Synchro]]="NOK",SUBTOTAL(3,GRDV[[#This Row],[Synchro]]),"") -> 
A55: 1606 | B55: Raccordement avec synchro | C55: 2022-01-04T11:00:00 | D55: Bordon Tarek | E55: RIP | F55: 44 LOIRE-ATLANTIQUE - CHATEAUBRIANT RIP LOAN | G55: POTEAU | H55: OK | I55: =VLOOKUP(A:A,CODE[#All],2,0) -> Raccordée OK | J55: S1 | K55: =VLOOKUP(J:J,SEM[#All],2,0) -> JANVIER | AB55: 1732 | AC55: Echecs Accès | AD55: Clef chez le gardien main absent | AJ55: =IF(GRDV[[#This Row],[Synchro]]="OK",SUBTOTAL(3,GRDV[[#This Row],[Synchro]]),"") -> 1 | AK55: =IF(GRDV[[#This Row],[Synchro]]="NOK",SUBTOTAL(3,GRDV[[#This Row],[Synchro]]),"") -> 
A56: 1606 | B56: Raccordement avec synchro | C56: 2022-01-04T11:00:00 | D56: Uguen Nicolas | E56: ZMD | F56: 29 Finistere ZMD - Douarnenez | G56: POTEAU | H56: OK | I56: =VLOOKUP(A:A,CODE[#All],2,0) -> Raccordée OK | J56: S1 | K56: =VLOOKUP(J:J,SEM[#All],2,0) -> JANVIER | AB56: 1733 | AC56: Echecs Autre | AD56: Freebox non recue | AJ56: =IF(GRDV[[#This Row],[Synchro]]="OK",SUBTOTAL(3,GRDV[[#This Row],[Synchro]]),"") -> 1 | AK56: =IF(GRDV[[#This Row],[Synchro]]="NOK",SUBTOTAL(3,GRDV[[#This Row],[Synchro]]),"") -> 
A57: 1606 | B57: Raccordement avec synchro | C57: 2022-01-04T11:00:00 | D57: Ahmed Zakaria | E57: ZMD | F57: 29 Finistere ZMD - Brest | G57: STANDARD | H57: OK | I57: =VLOOKUP(A:A,CODE[#All],2,0) -> Raccordée OK | J57: S1 | K57: =VLOOKUP(J:J,SEM[#All],2,0) -> JANVIER | AB57: 1734 | AC57: Echecs Autre | AD57: Freebox non récupérée | AJ57: =IF(GRDV[[#This Row],[Synchro]]="OK",SUBTOTAL(3,GRDV[[#This Row],[Synchro]]),"") -> 1 | AK57: =IF(GRDV[[#This Row],[Synchro]]="NOK",SUBTOTAL(3,GRDV[[#This Row],[Synchro]]),"") -> 
A58: 1606 | B58: Raccordement avec synchro | C58: 2022-01-04T11:00:00 | D58: Ginet Cyrille | E58: ZMD | F58: 29 Finistere ZMD - Morlaix | G58: POTEAU | H58: OK | I58: =VLOOKUP(A:A,CODE[#All],2,0) -> Raccordée OK | J58: S1 | K58: =VLOOKUP(J:J,SEM[#All],2,0) -> JANVIER | AB58: 1735 | AC58: Echecs Autre | AD58: Freebox HS | AJ58: =IF(GRDV[[#This Row],[Synchro]]="OK",SUBTOTAL(3,GRDV[[#This Row],[Synchro]]),"") -> 1 | AK58: =IF(GRDV[[#This Row],[Synchro]]="NOK",SUBTOTAL(3,GRDV[[#This Row],[Synchro]]),"") -> 
A59: 1606 | B59: Raccordement avec synchro | C59: 2022-01-04T11:00:00 | D59: Bouraya Riwan | E59: ZMD | F59: 29 Finistere ZMD - Brest | G59: POTEAU | H59: OK | I59: =VLOOKUP(A:A,CODE[#All],2,0) -> Raccordée OK | J59: S1 | K59: =VLOOKUP(J:J,SEM[#All],2,0) -> JANVIER | AB59: 1736 | AC59: Echecs Autre | AD59: Alimentation HS | AJ59: =IF(GRDV[[#This Row],[Synchro]]="OK",SUBTOTAL(3,GRDV[[#This Row],[Synchro]]),"") -> 1 | AK59: =IF(GRDV[[#This Row],[Synchro]]="NOK",SUBTOTAL(3,GRDV[[#This Row],[Synchro]]),"") -> 
A60: 1606 | B60: Raccordement avec synchro | C60: 2022-01-04T11:00:00 | D60: Borni Haitem | E60: RIP | F60: 44 LOIRE-ATLANTIQUE - HERIC RIP LOAN | G60: CHAMBRE | H60: OK | I60: =VLOOKUP(A:A,CODE[#All],2,0) -> Raccordée OK | J60: S1 | K60: =VLOOKUP(J:J,SEM[#All],2,0) -> JANVIER | AB60: 1737 | AC60: Echecs Techniques | AD60: Kit optique HS | AJ60: =IF(GRDV[[#This Row],[Synchro]]="OK",SUBTOTAL(3,GRDV[[#This Row],[Synchro]]),"") -> 1 | AK60: =IF(GRDV[[#This Row],[Synchro]]="NOK",SUBTOTAL(3,GRDV[[#This Row],[Synchro]]),"") -> 
A61: 1023 | B61: Refuse tous travaux | C61: 2022-01-04T12:00:00 | D61: Ishagthabit Madebo | E61: ZMD | F61: 29 Finistere ZMD - Douarnenez | G61: CHAMBRE | H61: NOK | I61: =VLOOKUP(A:A,CODE[#All],2,0) -> Echecs Techniques | J61: S1 | K61: =VLOOKUP(J:J,SEM[#All],2,0) -> JANVIER | AB61: 1738 | AC61: Echecs Techniques | AD61: Kit optique non laissé | AJ61: =IF(GRDV[[#This Row],[Synchro]]="OK",SUBTOTAL(3,GRDV[[#This Row],[Synchro]]),"") ->  | AK61: =IF(GRDV[[#This Row],[Synchro]]="NOK",SUBTOTAL(3,GRDV[[#This Row],[Synchro]]),"") -> 1
A62: 1606 | B62: Raccordement avec synchro | C62: 2022-01-04T13:00:00 | D62: Gaddour Neji | E62: ZMD | F62: 29 Finistere ZMD - Brest | G62: STANDARD | H62: OK | I62: =VLOOKUP(A:A,CODE[#All],2,0) -> Raccordée OK | J62: S1 | K62: =VLOOKUP(J:J,SEM[#All],2,0) -> JANVIER | AB62: 1739 | AC62: Echecs Infra | AD62: ERR 80 | AJ62: =IF(GRDV[[#This Row],[Synchro]]="OK",SUBTOTAL(3,GRDV[[#This Row],[Synchro]]),"") -> 1 | AK62: =IF(GRDV[[#This Row],[Synchro]]="NOK",SUBTOTAL(3,GRDV[[#This Row],[Synchro]]),"") -> 
A63: 1606 | B63: Raccordement avec synchro | C63: 2022-01-04T13:00:00 | D63: Fiacques Nibesson | E63: ZMD | F63: 29 Finistere ZMD - Brest | G63: STANDARD | H63: OK | I63: =VLOOKUP(A:A,CODE[#All],2,0) -> Raccordée OK | J63: S1 | K63: =VLOOKUP(J:J,SEM[#All],2,0) -> JANVIER | AB63: 1740 | AC63: Echecs Infra | AD63: Etape 1 | AJ63: =IF(GRDV[[#This Row],[Synchro]]="OK",SUBTOTAL(3,GRDV[[#This Row],[Synchro]]),"") -> 1 | AK63: =IF(GRDV[[#This Row],[Synchro]]="NOK",SUBTOTAL(3,GRDV[[#This Row],[Synchro]]),"") -> 
A64: 1606 | B64: Raccordement avec synchro | C64: 2022-01-04T14:00:00 | D64: Uguen Nicolas | E64: ZMD | F64: 29 Finistere ZMD - Douarnenez | G64: POTEAU | H64: OK | I64: =VLOOKUP(A:A,CODE[#All],2,0) -> Raccordée OK | J64: S1 | K64: =VLOOKUP(J:J,SEM[#All],2,0) -> JANVIER | AB64: 1741 | AC64: Echecs Infra | AD64: Etape 2-3 | AJ64: =IF(GRDV[[#This Row],[Synchro]]="OK",SUBTOTAL(3,GRDV[[#This Row],[Synchro]]),"") -> 1 | AK64: =IF(GRDV[[#This Row],[Synchro]]="NOK",SUBTOTAL(3,GRDV[[#This Row],[Synchro]]),"") -> 
A65: 1606 | B65: Raccordement avec synchro | C65: 2022-01-04T14:00:00 | D65: Bordon Tarek | E65: RIP | F65: 44 LOIRE-ATLANTIQUE - CHATEAUBRIANT RIP LOAN | G65: POTEAU | H65: OK | I65: =VLOOKUP(A:A,CODE[#All],2,0) -> Raccordée OK | J65: S1 | K65: =VLOOKUP(J:J,SEM[#All],2,0) -> JANVIER | AB65: 1742 | AC65: Echecs Autre | AD65: Etape 4 | AJ65: =IF(GRDV[[#This Row],[Synchro]]="OK",SUBTOTAL(3,GRDV[[#This Row],[Synchro]]),"") -> 1 | AK65: =IF(GRDV[[#This Row],[Synchro]]="NOK",SUBTOTAL(3,GRDV[[#This Row],[Synchro]]),"") -> 
A66: 1606 | B66: Raccordement avec synchro | C66: 2022-01-04T14:00:00 | D66: Bary Alimou | E66: RIP | F66: 44 LOIRE-ATLANTIQUE - HERIC RIP LOAN | G66: CHAMBRE | H66: OK | I66: =VLOOKUP(A:A,CODE[#All],2,0) -> Raccordée OK | J66: S1 | K66: =VLOOKUP(J:J,SEM[#All],2,0) -> JANVIER | AB66: 1743 | AC66: Echecs Autre | AD66: Free ( Freebox ) | AJ66: =IF(GRDV[[#This Row],[Synchro]]="OK",SUBTOTAL(3,GRDV[[#This Row],[Synchro]]),"") -> 1 | AK66: =IF(GRDV[[#This Row],[Synchro]]="NOK",SUBTOTAL(3,GRDV[[#This Row],[Synchro]]),"") -> 
A67: 1606 | B67: Raccordement avec synchro | C67: 2022-01-04T14:00:00 | D67: Belgacem Amine | E67: RIP | F67: 44 LOIRE-ATLANTIQUE - HERIC RIP LOAN | G67: POTEAU | H67: OK | I67: =VLOOKUP(A:A,CODE[#All],2,0) -> Raccordée OK | J67: S1 | K67: =VLOOKUP(J:J,SEM[#All],2,0) -> JANVIER | AB67: 1745 | AC67: Echecs Techniques | AD67: CA injoignable | AJ67: =IF(GRDV[[#This Row],[Synchro]]="OK",SUBTOTAL(3,GRDV[[#This Row],[Synchro]]),"") -> 1 | AK67: =IF(GRDV[[#This Row],[Synchro]]="NOK",SUBTOTAL(3,GRDV[[#This Row],[Synchro]]),"") -> 
A68: 1606 | B68: Raccordement avec synchro | C68: 2022-01-04T14:00:00 | D68: Bachar Abdoulrahim | E68: RIP | F68: 44 LOIRE-ATLANTIQUE - CHATEAUBRIANT RIP LOAN | G68: CHAMBRE | H68: OK | I68: =VLOOKUP(A:A,CODE[#All],2,0) -> Raccordée OK | J68: S1 | K68: =VLOOKUP(J:J,SEM[#All],2,0) -> JANVIER | AB68: 1746 | AC68: Echecs Autre | AD68: Freenaute abonné chez autre OC | AJ68: =IF(GRDV[[#This Row],[Synchro]]="OK",SUBTOTAL(3,GRDV[[#This Row],[Synchro]]),"") -> 1 | AK68: =IF(GRDV[[#This Row],[Synchro]]="NOK",SUBTOTAL(3,GRDV[[#This Row],[Synchro]]),"") -> 
A69: 1606 | B69: Raccordement avec synchro | C69: 2022-01-04T14:00:00 | D69: Ginet Cyrille | E69: ZMD | F69: 29 Finistere ZMD - Morlaix | G69: POTEAU | H69: OK | I69: =VLOOKUP(A:A,CODE[#All],2,0) -> Raccordée OK | J69: S1 | K69: =VLOOKUP(J:J,SEM[#All],2,0) -> JANVIER | AB69: 1747 | AC69: Echecs Infra | AD69: Cable horizontal HS/Absent | AJ69: =IF(GRDV[[#This Row],[Synchro]]="OK",SUBTOTAL(3,GRDV[[#This Row],[Synchro]]),"") -> 1 | AK69: =IF(GRDV[[#This Row],[Synchro]]="NOK",SUBTOTAL(3,GRDV[[#This Row],[Synchro]]),"") -> 
A70: 1606 | B70: Raccordement avec synchro | C70: 2022-01-04T14:00:00 | D70: Ahmed Zakaria | E70: ZMD | F70: 29 Finistere ZMD - Brest | G70: STANDARD | H70: =IF(A70>1606,"NOK",IF(A70<1606,"NOK",IF(A70=1606,"OK"))) -> OK | I70: =VLOOKUP(A:A,CODE[#All],2,0) -> Raccordée OK | J70: S1 | K70: =VLOOKUP(J:J,SEM[#All],2,0) -> JANVIER | AB70: 1748 | AC70: Echecs Infra | AD70: Position ou tiroir Free HS/Absent | AJ70: =IF(GRDV[[#This Row],[Synchro]]="OK",SUBTOTAL(3,GRDV[[#This Row],[Synchro]]),"") -> 1 | AK70: =IF(GRDV[[#This Row],[Synchro]]="NOK",SUBTOTAL(3,GRDV[[#This Row],[Synchro]]),"") -> 
A71: 1606 | B71: Raccordement avec synchro | C71: 2022-01-04T14:00:00 | D71: Bouraya Riwan | E71: ZMD | F71: 29 Finistere ZMD - Brest | G71: POTEAU | H71: OK | I71: =VLOOKUP(A:A,CODE[#All],2,0) -> Raccordée OK | J71: S1 | K71: =VLOOKUP(J:J,SEM[#All],2,0) -> JANVIER | AB71: 1749 | AC71: Echecs Infra | AD71: PBO HS | AJ71: =IF(GRDV[[#This Row],[Synchro]]="OK",SUBTOTAL(3,GRDV[[#This Row],[Synchro]]),"") -> 1 | AK71: =IF(GRDV[[#This Row],[Synchro]]="NOK",SUBTOTAL(3,GRDV[[#This Row],[Synchro]]),"") -> 
A72: 1606 | B72: Raccordement avec synchro | C72: 2022-01-04T15:00:00 | D72: Fiacques Nibesson | E72: ZMD | F72: 29 Finistere ZMD - Brest | G72: STANDARD | H72: OK | I72: =VLOOKUP(A:A,CODE[#All],2,0) -> Raccordée OK | J72: S1 | K72: =VLOOKUP(J:J,SEM[#All],2,0) -> JANVIER | AB72: 1750 | AC72: Echecs Infra | AD72: Défaut verticalité ( immeuble ) | AJ72: =IF(GRDV[[#This Row],[Synchro]]="OK",SUBTOTAL(3,GRDV[[#This Row],[Synchro]]),"") -> 1 | AK72: =IF(GRDV[[#This Row],[Synchro]]="NOK",SUBTOTAL(3,GRDV[[#This Row],[Synchro]]),"") -> 
A73: 445 | B73: En attente de récupération de la route | C73: 2022-01-04T15:00:00 | D73: Gaddour Neji | E73: ZMD | F73: 29 Finistere ZMD - Brest | G73: STANDARD | H73: NOK | I73: =VLOOKUP(A:A,CODE[#All],2,0) -> Echecs Techniques | J73: S1 | K73: =VLOOKUP(J:J,SEM[#All],2,0) -> JANVIER | AB73: 1751 | AC73: Echecs Infra | AD73: Cable vertical absent | AJ73: =IF(GRDV[[#This Row],[Synchro]]="OK",SUBTOTAL(3,GRDV[[#This Row],[Synchro]]),"") ->  | AK73: =IF(GRDV[[#This Row],[Synchro]]="NOK",SUBTOTAL(3,GRDV[[#This Row],[Synchro]]),"") -> 1
A74: 1606 | B74: Raccordement avec synchro | C74: 2022-01-04T16:00:00 | D74: Ahmed Zakaria | E74: ZMD | F74: 29 Finistere ZMD - Brest | G74: STANDARD | H74: OK | I74: =VLOOKUP(A:A,CODE[#All],2,0) -> Raccordée OK | J74: S1 | K74: =VLOOKUP(J:J,SEM[#All],2,0) -> JANVIER | AB74: 1752 | AC74: Echecs Infra | AD74: Cable vertical HS | AJ74: =IF(GRDV[[#This Row],[Synchro]]="OK",SUBTOTAL(3,GRDV[[#This Row],[Synchro]]),"") -> 1 | AK74: =IF(GRDV[[#This Row],[Synchro]]="NOK",SUBTOTAL(3,GRDV[[#This Row],[Synchro]]),"") -> 
A75: 1606 | B75: Raccordement avec synchro | C75: 2022-01-05T08:00:00 | D75: Bouraya Riwan | E75: ZMD | F75: 29 Finistere ZMD - Morlaix | G75: CHAMBRE | H75: OK | I75: =VLOOKUP(A:A,CODE[#All],2,0) -> Raccordée OK | J75: S1 | K75: =VLOOKUP(J:J,SEM[#All],2,0) -> JANVIER | AB75: 1753 | AC75: Echecs Infra | AD75: Position ou tiroir OZ HS/Absent | AJ75: =IF(GRDV[[#This Row],[Synchro]]="OK",SUBTOTAL(3,GRDV[[#This Row],[Synchro]]),"") -> 1 | AK75: =IF(GRDV[[#This Row],[Synchro]]="NOK",SUBTOTAL(3,GRDV[[#This Row],[Synchro]]),"") -> 
A76: 1606 | B76: Raccordement avec synchro | C76: 2022-01-05T08:00:00 | D76: Bachar Abdoulrahim | E76: RIP | F76: 44 LOIRE-ATLANTIQUE - CHATEAUBRIANT RIP LOAN | G76: CHAMBRE | H76: OK | I76: =VLOOKUP(A:A,CODE[#All],2,0) -> Raccordée OK | J76: S1 | K76: =VLOOKUP(J:J,SEM[#All],2,0) -> JANVIER | AB76: 1754 | AC76: Echecs Techniques | AD76: Pas de clef PM | AJ76: =IF(GRDV[[#This Row],[Synchro]]="OK",SUBTOTAL(3,GRDV[[#This Row],[Synchro]]),"") -> 1 | AK76: =IF(GRDV[[#This Row],[Synchro]]="NOK",SUBTOTAL(3,GRDV[[#This Row],[Synchro]]),"") -> 
A77: 1606 | B77: Raccordement avec synchro | C77: 2022-01-05T08:00:00 | D77: Bary Alimou | E77: RIP | F77: 44 LOIRE-ATLANTIQUE - HERIC RIP LOAN | G77: CHAMBRE | H77: OK | I77: =VLOOKUP(A:A,CODE[#All],2,0) -> Raccordée OK | J77: S1 | K77: =VLOOKUP(J:J,SEM[#All],2,0) -> JANVIER | AB77: 1756 | AC77: Echecs Infra | AD77: Refus mutation ( fibres dispos ) - Commande su | AJ77: =IF(GRDV[[#This Row],[Synchro]]="OK",SUBTOTAL(3,GRDV[[#This Row],[Synchro]]),"") -> 1 | AK77: =IF(GRDV[[#This Row],[Synchro]]="NOK",SUBTOTAL(3,GRDV[[#This Row],[Synchro]]),"") -> 
A78: 1022 | B78: Client réalise les travaux | C78: 2022-01-05T08:00:00 | D78: Belgacem Amine | E78: RIP | F78: 44 LOIRE-ATLANTIQUE - HERIC RIP LOAN | G78: POTEAU | H78: NOK | I78: =VLOOKUP(A:A,CODE[#All],2,0) -> Echecs Techniques | J78: S1 | K78: =VLOOKUP(J:J,SEM[#All],2,0) -> JANVIER | AB78: 1757 | AC78: Echecs Infra | AD78: Position FREE non attribuée | AJ78: =IF(GRDV[[#This Row],[Synchro]]="OK",SUBTOTAL(3,GRDV[[#This Row],[Synchro]]),"") ->  | AK78: =IF(GRDV[[#This Row],[Synchro]]="NOK",SUBTOTAL(3,GRDV[[#This Row],[Synchro]]),"") -> 1
A79: 1606 | B79: Raccordement avec synchro | C79: 2022-01-05T08:00:00 | D79: Bordon Tarek | E79: RIP | F79: 44 LOIRE-ATLANTIQUE - CHATEAUBRIANT RIP LOAN | G79: POTEAU | H79: OK | I79: =VLOOKUP(A:A,CODE[#All],2,0) -> Raccordée OK | J79: S1 | K79: =VLOOKUP(J:J,SEM[#All],2,0) -> JANVIER | AB79: 1758 | AC79: Echecs Techniques | AD79: PM introuvable | AJ79: =IF(GRDV[[#This Row],[Synchro]]="OK",SUBTOTAL(3,GRDV[[#This Row],[Synchro]]),"") -> 1 | AK79: =IF(GRDV[[#This Row],[Synchro]]="NOK",SUBTOTAL(3,GRDV[[#This Row],[Synchro]]),"") -> 
A80: 1606 | B80: Raccordement avec synchro | C80: 2022-01-05T08:00:00 | D80: Borni Haitem | E80: RIP | F80: 44 LOIRE-ATLANTIQUE - HERIC RIP LOAN | G80: CHAMBRE | H80: OK | I80: =VLOOKUP(A:A,CODE[#All],2,0) -> Raccordée OK | J80: S1 | K80: =VLOOKUP(J:J,SEM[#All],2,0) -> JANVIER | AB80: 1759 | AC80: Echecs Accès | AD80: Autorisation poteaux EDF | AJ80: =IF(GRDV[[#This Row],[Synchro]]="OK",SUBTOTAL(3,GRDV[[#This Row],[Synchro]]),"") -> 1 | AK80: =IF(GRDV[[#This Row],[Synchro]]="NOK",SUBTOTAL(3,GRDV[[#This Row],[Synchro]]),"") -> 
A81: 1606 | B81: Raccordement avec synchro | C81: 2022-01-05T08:00:00 | D81: Gaddour Neji | E81: RIP | F81: 29 Finistere RIP - Douarnenez THDB | G81: CHAMBRE | H81: OK | I81: =VLOOKUP(A:A,CODE[#All],2,0) -> Raccordée OK | J81: S1 | K81: =VLOOKUP(J:J,SEM[#All],2,0) -> JANVIER | AB81: 1760 | AC81: Echecs Techniques | AD81: Facade inacessible | AJ81: =IF(GRDV[[#This Row],[Synchro]]="OK",SUBTOTAL(3,GRDV[[#This Row],[Synchro]]),"") -> 1 | AK81: =IF(GRDV[[#This Row],[Synchro]]="NOK",SUBTOTAL(3,GRDV[[#This Row],[Synchro]]),"") -> 
A82: 1606 | B82: Raccordement avec synchro | C82: 2022-01-05T10:00:00 | D82: Ginet Cyrille | E82: ZMD | F82: 29 Finistere ZMD - Brest | G82: STANDARD | H82: OK | I82: =VLOOKUP(A:A,CODE[#All],2,0) -> Raccordée OK | J82: S1 | K82: =VLOOKUP(J:J,SEM[#All],2,0) -> JANVIER | AB82: 1761 | AC82: Echecs Techniques | AD82: Reprovisionning ou contournement | AJ82: =IF(GRDV[[#This Row],[Synchro]]="OK",SUBTOTAL(3,GRDV[[#This Row],[Synchro]]),"") -> 1 | AK82: =IF(GRDV[[#This Row],[Synchro]]="NOK",SUBTOTAL(3,GRDV[[#This Row],[Synchro]]),"") -> 
A83: 1606 | B83: Raccordement avec synchro | C83: 2022-01-05T11:00:00 | D83: Belgacem Amine | E83: RIP | F83: 44 LOIRE-ATLANTIQUE - HERIC RIP LOAN | G83: POTEAU | H83: OK | I83: =VLOOKUP(A:A,CODE[#All],2,0) -> Raccordée OK | J83: S1 | K83: =VLOOKUP(J:J,SEM[#All],2,0) -> JANVIER | AB83: 1762 | AC83: Echecs Autre | AD83: Module optique Delta non recu | AJ83: =IF(GRDV[[#This Row],[Synchro]]="OK",SUBTOTAL(3,GRDV[[#This Row],[Synchro]]),"") -> 1 | AK83: =IF(GRDV[[#This Row],[Synchro]]="NOK",SUBTOTAL(3,GRDV[[#This Row],[Synchro]]),"") -> 
A84: 1733 | B84: Freebox non reçue | C84: 2022-01-05T11:00:00 | D84: Fanaoui Salah | E84: ZMD | F84: 29 Finistere ZMD - Brest | G84: POTEAU | H84: NOK | I84: =VLOOKUP(A:A,CODE[#All],2,0) -> Echecs Autre | J84: S1 | K84: =VLOOKUP(J:J,SEM[#All],2,0) -> JANVIER | AB84: 1763 | AC84: Echecs Autre | AD84: Contact éronné | AJ84: =IF(GRDV[[#This Row],[Synchro]]="OK",SUBTOTAL(3,GRDV[[#This Row],[Synchro]]),"") ->  | AK84: =IF(GRDV[[#This Row],[Synchro]]="NOK",SUBTOTAL(3,GRDV[[#This Row],[Synchro]]),"") -> 1
A85: 1606 | B85: Raccordement avec synchro | C85: 2022-01-05T11:00:00 | D85: Bary Alimou | E85: RIP | F85: 44 LOIRE-ATLANTIQUE - HERIC RIP LOAN | G85: CHAMBRE | H85: OK | I85: =VLOOKUP(A:A,CODE[#All],2,0) -> Raccordée OK | J85: S1 | K85: =VLOOKUP(J:J,SEM[#All],2,0) -> JANVIER | AB85: 1764 | AC85: Echecs Accès | AD85: Chambre inondée | AJ85: =IF(GRDV[[#This Row],[Synchro]]="OK",SUBTOTAL(3,GRDV[[#This Row],[Synchro]]),"") -> 1 | AK85: =IF(GRDV[[#This Row],[Synchro]]="NOK",SUBTOTAL(3,GRDV[[#This Row],[Synchro]]),"") -> 
A86: 1022 | B86: Client réalise les travaux | C86: 2022-01-05T11:00:00 | D86: Borni Haitem | E86: RIP | F86: 44 LOIRE-ATLANTIQUE - HERIC RIP LOAN | G86: CHAMBRE | H86: NOK | I86: =VLOOKUP(A:A,CODE[#All],2,0) -> Echecs Techniques | J86: S1 | K86: =VLOOKUP(J:J,SEM[#All],2,0) -> JANVIER | AB86: 1765 | AC86: Echecs Techniques | AD86: Chambre introuvable | AJ86: =IF(GRDV[[#This Row],[Synchro]]="OK",SUBTOTAL(3,GRDV[[#This Row],[Synchro]]),"") ->  | AK86: =IF(GRDV[[#This Row],[Synchro]]="NOK",SUBTOTAL(3,GRDV[[#This Row],[Synchro]]),"") -> 1
A87: 1606 | B87: Raccordement avec synchro | C87: 2022-01-05T11:00:00 | D87: Bordon Tarek | E87: RIP | F87: 44 LOIRE-ATLANTIQUE - CHATEAUBRIANT RIP LOAN | G87: POTEAU | H87: OK | I87: =VLOOKUP(A:A,CODE[#All],2,0) -> Raccordée OK | J87: S1 | K87: =VLOOKUP(J:J,SEM[#All],2,0) -> JANVIER | AB87: 1766 | AC87: Echecs Techniques | AD87: Véhicule sur chambre | AJ87: =IF(GRDV[[#This Row],[Synchro]]="OK",SUBTOTAL(3,GRDV[[#This Row],[Synchro]]),"") -> 1 | AK87: =IF(GRDV[[#This Row],[Synchro]]="NOK",SUBTOTAL(3,GRDV[[#This Row],[Synchro]]),"") -> 
A88: 1022 | B88: Client réalise les travaux | C88: 2022-01-05T11:00:00 | D88: Bachar Abdoulrahim | E88: RIP | F88: 44 LOIRE-ATLANTIQUE - CHATEAUBRIANT RIP LOAN | G88: CHAMBRE | H88: NOK | I88: =VLOOKUP(A:A,CODE[#All],2,0) -> Echecs Techniques | J88: S1 | K88: =VLOOKUP(J:J,SEM[#All],2,0) -> JANVIER | AB88: 1767 | AC88: Echecs Accès | AD88: Chambre scéllée | AJ88: =IF(GRDV[[#This Row],[Synchro]]="OK",SUBTOTAL(3,GRDV[[#This Row],[Synchro]]),"") ->  | AK88: =IF(GRDV[[#This Row],[Synchro]]="NOK",SUBTOTAL(3,GRDV[[#This Row],[Synchro]]),"") -> 1
A89: 1774 | B89: Demande de recâblage multi PM | C89: 2022-01-05T11:00:00 | D89: Bouraya Riwan | E89: ZMD | F89: 29 Finistere ZMD - Brest | G89: POTEAU | H89: NOK | I89: =VLOOKUP(A:A,CODE[#All],2,0) -> Echecs Infra | J89: S1 | K89: =VLOOKUP(J:J,SEM[#All],2,0) -> JANVIER | AB89: 1768 | AC89: Echecs Accès | AD89: Demande de voirie | AJ89: =IF(GRDV[[#This Row],[Synchro]]="OK",SUBTOTAL(3,GRDV[[#This Row],[Synchro]]),"") ->  | AK89: =IF(GRDV[[#This Row],[Synchro]]="NOK",SUBTOTAL(3,GRDV[[#This Row],[Synchro]]),"") -> 1
A90: 1606 | B90: Raccordement avec synchro | C90: 2022-01-05T11:00:00 | D90: Ishagthabit Madebo | E90: RIP | F90: 29 Finistere RIP - Douarnenez THDB | G90: CHAMBRE | H90: OK | I90: =VLOOKUP(A:A,CODE[#All],2,0) -> Raccordée OK | J90: S1 | K90: =VLOOKUP(J:J,SEM[#All],2,0) -> JANVIER | AB90: 1769 | AC90: Echecs Infra | AD90: Absence de verticalité | AJ90: =IF(GRDV[[#This Row],[Synchro]]="OK",SUBTOTAL(3,GRDV[[#This Row],[Synchro]]),"") -> 1 | AK90: =IF(GRDV[[#This Row],[Synchro]]="NOK",SUBTOTAL(3,GRDV[[#This Row],[Synchro]]),"") -> 
A91: 1606 | B91: Raccordement avec synchro | C91: 2022-01-05T13:00:00 | D91: Ahmed Zakaria | E91: ZMD | F91: 29 Finistere ZMD - Brest | G91: STANDARD | H91: OK | I91: =VLOOKUP(A:A,CODE[#All],2,0) -> Raccordée OK | J91: S1 | K91: =VLOOKUP(J:J,SEM[#All],2,0) -> JANVIER | AB91: 1770 | AC91: Echecs Techniques | AD91: Bloqué en chambre intermédiaire | AJ91: =IF(GRDV[[#This Row],[Synchro]]="OK",SUBTOTAL(3,GRDV[[#This Row],[Synchro]]),"") -> 1 | AK91: =IF(GRDV[[#This Row],[Synchro]]="NOK",SUBTOTAL(3,GRDV[[#This Row],[Synchro]]),"") -> 
A92: 1606 | B92: Raccordement avec synchro | C92: 2022-01-05T14:00:00 | D92: Bachar Abdoulrahim | E92: RIP | F92: 44 LOIRE-ATLANTIQUE - CHATEAUBRIANT RIP LOAN | G92: CHAMBRE | H92: OK | I92: =VLOOKUP(A:A,CODE[#All],2,0) -> Raccordée OK | J92: S1 | K92: =VLOOKUP(J:J,SEM[#All],2,0) -> JANVIER | AB92: 1771 | AC92: Echecs Techniques | AD92: Manque de consommable | AJ92: =IF(GRDV[[#This Row],[Synchro]]="OK",SUBTOTAL(3,GRDV[[#This Row],[Synchro]]),"") -> 1 | AK92: =IF(GRDV[[#This Row],[Synchro]]="NOK",SUBTOTAL(3,GRDV[[#This Row],[Synchro]]),"") -> 
A93: 1606 | B93: Raccordement avec synchro | C93: 2022-01-05T14:00:00 | D93: Belgacem Amine | E93: RIP | F93: 44 LOIRE-ATLANTIQUE - HERIC RIP LOAN | G93: POTEAU | H93: OK | I93: =VLOOKUP(A:A,CODE[#All],2,0) -> Raccordée OK | J93: S1 | K93: =VLOOKUP(J:J,SEM[#All],2,0) -> JANVIER | AB93: 1772 | AC93: Echecs Techniques | AD93: Manque outillage | AJ93: =IF(GRDV[[#This Row],[Synchro]]="OK",SUBTOTAL(3,GRDV[[#This Row],[Synchro]]),"") -> 1 | AK93: =IF(GRDV[[#This Row],[Synchro]]="NOK",SUBTOTAL(3,GRDV[[#This Row],[Synchro]]),"") -> 
A94: 1023 | B94: Refuse tous travaux | C94: 2022-01-05T14:00:00 | D94: Bary Alimou | E94: RIP | F94: 44 LOIRE-ATLANTIQUE - HERIC RIP LOAN | G94: CHAMBRE | H94: NOK | I94: =VLOOKUP(A:A,CODE[#All],2,0) -> Echecs Techniques | J94: S1 | K94: =VLOOKUP(J:J,SEM[#All],2,0) -> JANVIER | AB94: 1773 | AC94: Echecs Techniques | AD94: Foureau à déboucher ( exterieur ) | AJ94: =IF(GRDV[[#This Row],[Synchro]]="OK",SUBTOTAL(3,GRDV[[#This Row],[Synchro]]),"") ->  | AK94: =IF(GRDV[[#This Row],[Synchro]]="NOK",SUBTOTAL(3,GRDV[[#This Row],[Synchro]]),"") -> 1
A95: 1606 | B95: Raccordement avec synchro | C95: 2022-01-05T14:00:00 | D95: Bordon Tarek | E95: RIP | F95: 44 LOIRE-ATLANTIQUE - CHATEAUBRIANT RIP LOAN | G95: POTEAU | H95: OK | I95: =VLOOKUP(A:A,CODE[#All],2,0) -> Raccordée OK | J95: S1 | K95: =VLOOKUP(J:J,SEM[#All],2,0) -> JANVIER | AB95: 1774 | AC95: Echecs Infra | AD95: Demande de recablage multi PM | AJ95: =IF(GRDV[[#This Row],[Synchro]]="OK",SUBTOTAL(3,GRDV[[#This Row],[Synchro]]),"") -> 1 | AK95: =IF(GRDV[[#This Row],[Synchro]]="NOK",SUBTOTAL(3,GRDV[[#This Row],[Synchro]]),"") -> 
A96: 1606 | B96: Raccordement avec synchro | C96: 2022-01-05T14:00:00 | D96: Bouraya Riwan | E96: ZMD | F96: 29 Finistere ZMD - Brest | G96: POTEAU | H96: OK | I96: =VLOOKUP(A:A,CODE[#All],2,0) -> Raccordée OK | J96: S1 | K96: =VLOOKUP(J:J,SEM[#All],2,0) -> JANVIER | AB96: 1775 | AC96: Echecs Techniques | AD96: Pas d'acces PM | AJ96: =IF(GRDV[[#This Row],[Synchro]]="OK",SUBTOTAL(3,GRDV[[#This Row],[Synchro]]),"") -> 1 | AK96: =IF(GRDV[[#This Row],[Synchro]]="NOK",SUBTOTAL(3,GRDV[[#This Row],[Synchro]]),"") -> 
A97: 1606 | B97: Raccordement avec synchro | C97: 2022-01-05T14:00:00 | D97: Fanaoui Salah | E97: ZMD | F97: 29 Finistere ZMD - Brest | G97: POTEAU | H97: OK | I97: =VLOOKUP(A:A,CODE[#All],2,0) -> Raccordée OK | J97: S1 | K97: =VLOOKUP(J:J,SEM[#All],2,0) -> JANVIER | AB97: 1776 | AC97: Echecs Techniques | AD97: Tranchée à réalisée ( exterieur ) | AJ97: =IF(GRDV[[#This Row],[Synchro]]="OK",SUBTOTAL(3,GRDV[[#This Row],[Synchro]]),"") -> 1 | AK97: =IF(GRDV[[#This Row],[Synchro]]="NOK",SUBTOTAL(3,GRDV[[#This Row],[Synchro]]),"") -> 
A98: 1606 | B98: Raccordement avec synchro | C98: 2022-01-05T14:00:00 | D98: Borni Haitem | E98: RIP | F98: 44 LOIRE-ATLANTIQUE - HERIC RIP LOAN | G98: CHAMBRE | H98: OK | I98: =VLOOKUP(A:A,CODE[#All],2,0) -> Raccordée OK | J98: S1 | K98: =VLOOKUP(J:J,SEM[#All],2,0) -> JANVIER | AB98: 1777 | AC98: Echecs Techniques | AD98: Foureau à déboucher ( interieur ) | AJ98: =IF(GRDV[[#This Row],[Synchro]]="OK",SUBTOTAL(3,GRDV[[#This Row],[Synchro]]),"") -> 1 | AK98: =IF(GRDV[[#This Row],[Synchro]]="NOK",SUBTOTAL(3,GRDV[[#This Row],[Synchro]]),"") -> 
A99: 1606 | B99: Raccordement avec synchro | C99: 2022-01-05T14:00:00 | D99: Ishagthabit Madebo | E99: RIP | F99: 29 Finistere RIP - Douarnenez THDB | G99: CHAMBRE | H99: OK | I99: =VLOOKUP(A:A,CODE[#All],2,0) -> Raccordée OK | J99: S1 | K99: =VLOOKUP(J:J,SEM[#All],2,0) -> JANVIER | AB99: 1778 | AC99: Echecs Techniques | AD99: Etude Free à réaliser | AJ99: =IF(GRDV[[#This Row],[Synchro]]="OK",SUBTOTAL(3,GRDV[[#This Row],[Synchro]]),"") -> 1 | AK99: =IF(GRDV[[#This Row],[Synchro]]="NOK",SUBTOTAL(3,GRDV[[#This Row],[Synchro]]),"") -> 
A100: 1606 | B100: Raccordement avec synchro | C100: 2022-01-05T15:00:00 | D100: Ahmed Zakaria | E100: ZMD | F100: 29 Finistere ZMD - Brest | G100: STANDARD | H100: OK | I100: =VLOOKUP(A:A,CODE[#All],2,0) -> Raccordée OK | J100: S1 | K100: =VLOOKUP(J:J,SEM[#All],2,0) -> JANVIER | AB100: 1779 | AC100: Echecs Techniques | AD100: Foureau à déboucher ( exterieur ) | AJ100: =IF(GRDV[[#This Row],[Synchro]]="OK",SUBTOTAL(3,GRDV[[#This Row],[Synchro]]),"") -> 1 | AK100: =IF(GRDV[[#This Row],[Synchro]]="NOK",SUBTOTAL(3,GRDV[[#This Row],[Synchro]]),"") -> 
A101: 1606 | B101: Raccordement avec synchro | C101: 2022-01-06T08:00:00 | D101: Belgacem Amine | E101: RIP | F101: 44 LOIRE-ATLANTIQUE - HERIC RIP LOAN | G101: POTEAU | H101: OK | I101: =VLOOKUP(A:A,CODE[#All],2,0) -> Raccordée OK | J101: S1 | K101: =VLOOKUP(J:J,SEM[#All],2,0) -> JANVIER | AB101: 1780 | AC101: Echecs Techniques | AD101: ONU Leds orange | AJ101: =IF(GRDV[[#This Row],[Synchro]]="OK",SUBTOTAL(3,GRDV[[#This Row],[Synchro]]),"") -> 1 | AK101: =IF(GRDV[[#This Row],[Synchro]]="NOK",SUBTOTAL(3,GRDV[[#This Row],[Synchro]]),"") -> 
A102: 1606 | B102: Raccordement avec synchro | C102: 2022-01-06T08:00:00 | D102: Bary Alimou | E102: RIP | F102: 44 LOIRE-ATLANTIQUE - HERIC RIP LOAN | G102: CHAMBRE | H102: OK | I102: =VLOOKUP(A:A,CODE[#All],2,0) -> Raccordée OK | J102: S1 | K102: =VLOOKUP(J:J,SEM[#All],2,0) -> JANVIER | AB102: 1781 | AC102: Echecs Techniques | AD102: Led vert et orange | AJ102: =IF(GRDV[[#This Row],[Synchro]]="OK",SUBTOTAL(3,GRDV[[#This Row],[Synchro]]),"") -> 1 | AK102: =IF(GRDV[[#This Row],[Synchro]]="NOK",SUBTOTAL(3,GRDV[[#This Row],[Synchro]]),"") -> 
A103: 1606 | B103: Raccordement avec synchro | C103: 2022-01-06T08:00:00 | D103: Borni Haitem | E103: RIP | F103: 44 LOIRE-ATLANTIQUE - HERIC RIP LOAN | G103: STANDARD | H103: OK | I103: =VLOOKUP(A:A,CODE[#All],2,0) -> Raccordée OK | J103: S1 | K103: =VLOOKUP(J:J,SEM[#All],2,0) -> JANVIER | AB103: 1782 | AC103: Echecs Autre | AD103: Abonné chez autre opérateur | AJ103: =IF(GRDV[[#This Row],[Synchro]]="OK",SUBTOTAL(3,GRDV[[#This Row],[Synchro]]),"") -> 1 | AK103: =IF(GRDV[[#This Row],[Synchro]]="NOK",SUBTOTAL(3,GRDV[[#This Row],[Synchro]]),"") -> 
A104: 1606 | B104: Raccordement avec synchro | C104: 2022-01-06T08:00:00 | D104: Bachar Abdoulrahim | E104: RIP | F104: 44 LOIRE-ATLANTIQUE - CHATEAUBRIANT RIP LOAN | G104: CHAMBRE | H104: OK | I104: =VLOOKUP(A:A,CODE[#All],2,0) -> Raccordée OK | J104: S1 | K104: =VLOOKUP(J:J,SEM[#All],2,0) -> JANVIER | AB104: 1783 | AC104: Echecs Techniques | AD104: Grande hauteur | AJ104: =IF(GRDV[[#This Row],[Synchro]]="OK",SUBTOTAL(3,GRDV[[#This Row],[Synchro]]),"") -> 1 | AK104: =IF(GRDV[[#This Row],[Synchro]]="NOK",SUBTOTAL(3,GRDV[[#This Row],[Synchro]]),"") -> 
A105: 1606 | B105: Raccordement avec synchro | C105: 2022-01-06T08:00:00 | D105: Bordon Tarek | E105: RIP | F105: 44 LOIRE-ATLANTIQUE - CHATEAUBRIANT RIP LOAN | G105: POTEAU | H105: OK | I105: =VLOOKUP(A:A,CODE[#All],2,0) -> Raccordée OK | J105: S1 | K105: =VLOOKUP(J:J,SEM[#All],2,0) -> JANVIER | AB105: 1784 | AC105: Echecs Infra | AD105: Reprov à chaud impossible - Hotline OI injoignable | AJ105: =IF(GRDV[[#This Row],[Synchro]]="OK",SUBTOTAL(3,GRDV[[#This Row],[Synchro]]),"") -> 1 | AK105: =IF(GRDV[[#This Row],[Synchro]]="NOK",SUBTOTAL(3,GRDV[[#This Row],[Synchro]]),"") -> 
A106: 1606 | B106: Raccordement avec synchro | C106: 2022-01-06T08:00:00 | D106: Ahmed Zakaria | E106: ZMD | F106: 29 Finistere ZMD - Morlaix | G106: STANDARD | H106: OK | I106: =VLOOKUP(A:A,CODE[#All],2,0) -> Raccordée OK | J106: S1 | K106: =VLOOKUP(J:J,SEM[#All],2,0) -> JANVIER | AB106: 1785 | AC106: Echecs Accès | AD106: Pas d'acces PM - Acces matin | AJ106: =IF(GRDV[[#This Row],[Synchro]]="OK",SUBTOTAL(3,GRDV[[#This Row],[Synchro]]),"") -> 1 | AK106: =IF(GRDV[[#This Row],[Synchro]]="NOK",SUBTOTAL(3,GRDV[[#This Row],[Synchro]]),"") -> 
A107: 1606 | B107: Raccordement avec synchro | C107: 2022-01-06T08:00:00 | D107: Ginet Cyrille | E107: ZMD | F107: 29 Finistere ZMD - Brest | G107: CHAMBRE | H107: OK | I107: =VLOOKUP(A:A,CODE[#All],2,0) -> Raccordée OK | J107: S1 | K107: =VLOOKUP(J:J,SEM[#All],2,0) -> JANVIER | AB107: 1786 | AC107: Echecs Accès | AD107: Pas d'acces PM - Clef gardien | AJ107: =IF(GRDV[[#This Row],[Synchro]]="OK",SUBTOTAL(3,GRDV[[#This Row],[Synchro]]),"") -> 1 | AK107: =IF(GRDV[[#This Row],[Synchro]]="NOK",SUBTOTAL(3,GRDV[[#This Row],[Synchro]]),"") -> 
A108: 1606 | B108: Raccordement avec synchro | C108: 2022-01-06T08:00:00 | D108: Bouraya Riwan | E108: ZMD | F108: 29 Finistere ZMD - Brest | G108: POTEAU | H108: OK | I108: =VLOOKUP(A:A,CODE[#All],2,0) -> Raccordée OK | J108: S1 | K108: =VLOOKUP(J:J,SEM[#All],2,0) -> JANVIER | AB108: 1787 | AC108: Echecs Accès | AD108: Pas d'acces PM - Clef syndic | AJ108: =IF(GRDV[[#This Row],[Synchro]]="OK",SUBTOTAL(3,GRDV[[#This Row],[Synchro]]),"") -> 1 | AK108: =IF(GRDV[[#This Row],[Synchro]]="NOK",SUBTOTAL(3,GRDV[[#This Row],[Synchro]]),"") -> 
A109: 1773 | B109: Fourreau à déboucher (extérieur) | C109: 2022-01-06T08:00:00 | D109: Uguen Nicolas | E109: RIP | F109: 29 Finistere RIP - Douarnenez THDB | G109: CHAMBRE | H109: NOK | I109: =VLOOKUP(A:A,CODE[#All],2,0) -> Echecs Techniques | J109: S1 | K109: =VLOOKUP(J:J,SEM[#All],2,0) -> JANVIER | AB109: 1788 | AC109: Echecs Infra | AD109: Pas de fibre disponible - Saturation reelle | AJ109: =IF(GRDV[[#This Row],[Synchro]]="OK",SUBTOTAL(3,GRDV[[#This Row],[Synchro]]),"") ->  | AK109: =IF(GRDV[[#This Row],[Synchro]]="NOK",SUBTOTAL(3,GRDV[[#This Row],[Synchro]]),"") -> 1
A110: 1606 | B110: Raccordement avec synchro | C110: 2022-01-06T08:00:00 | D110: Fanaoui Salah | E110: ZMD | F110: 29 Finistere ZMD - Brest | G110: STANDARD | H110: OK | I110: =VLOOKUP(A:A,CODE[#All],2,0) -> Raccordée OK | J110: S1 | K110: =VLOOKUP(J:J,SEM[#All],2,0) -> JANVIER | AB110: 1789 | AC110: Echecs Techniques | AD110: ONU Leds éteintes | AJ110: =IF(GRDV[[#This Row],[Synchro]]="OK",SUBTOTAL(3,GRDV[[#This Row],[Synchro]]),"") -> 1 | AK110: =IF(GRDV[[#This Row],[Synchro]]="NOK",SUBTOTAL(3,GRDV[[#This Row],[Synchro]]),"") -> 
A111: 1606 | B111: Raccordement avec synchro | C111: 2022-01-06T10:00:00 | D111: Fanaoui Salah | E111: ZMD | F111: 29 Finistere ZMD - Brest | G111: STANDARD | H111: OK | I111: =VLOOKUP(A:A,CODE[#All],2,0) -> Raccordée OK | J111: S1 | K111: =VLOOKUP(J:J,SEM[#All],2,0) -> JANVIER | AB111: 1790 | AC111: Echecs Autre | AD111: Aficheur éteint | AJ111: =IF(GRDV[[#This Row],[Synchro]]="OK",SUBTOTAL(3,GRDV[[#This Row],[Synchro]]),"") -> 1 | AK111: =IF(GRDV[[#This Row],[Synchro]]="NOK",SUBTOTAL(3,GRDV[[#This Row],[Synchro]]),"") -> 
A112: 1606 | B112: Raccordement avec synchro | C112: 2022-01-06T10:00:00 | D112: Gaddour Neji | E112: ZMD | F112: 29 Finistere ZMD - Brest | G112: STANDARD | H112: OK | I112: =VLOOKUP(A:A,CODE[#All],2,0) -> Raccordée OK | J112: S1 | K112: =VLOOKUP(J:J,SEM[#All],2,0) -> JANVIER | AB112: 1791 | AC112: Raccordée OK | AD112: PTO existante avant intervention | AJ112: =IF(GRDV[[#This Row],[Synchro]]="OK",SUBTOTAL(3,GRDV[[#This Row],[Synchro]]),"") -> 1 | AK112: =IF(GRDV[[#This Row],[Synchro]]="NOK",SUBTOTAL(3,GRDV[[#This Row],[Synchro]]),"") -> 
A113: 1606 | B113: Raccordement avec synchro | C113: 2022-01-06T10:00:00 | D113: Ahmed Zakaria | E113: ZMD | F113: 29 Finistere ZMD - Morlaix | G113: STANDARD | H113: OK | I113: =VLOOKUP(A:A,CODE[#All],2,0) -> Raccordée OK | J113: S1 | K113: =VLOOKUP(J:J,SEM[#All],2,0) -> JANVIER | AB113: 1792 | AC113: Echecs Techniques | AD113: Pas d'acces PBO | AJ113: =IF(GRDV[[#This Row],[Synchro]]="OK",SUBTOTAL(3,GRDV[[#This Row],[Synchro]]),"") -> 1 | AK113: =IF(GRDV[[#This Row],[Synchro]]="NOK",SUBTOTAL(3,GRDV[[#This Row],[Synchro]]),"") -> 
A114: 1606 | B114: Raccordement avec synchro | C114: 2022-01-06T11:00:00 | D114: Belgacem Amine | E114: RIP | F114: 44 LOIRE-ATLANTIQUE - HERIC RIP LOAN | G114: POTEAU | H114: OK | I114: =VLOOKUP(A:A,CODE[#All],2,0) -> Raccordée OK | J114: S1 | K114: =VLOOKUP(J:J,SEM[#All],2,0) -> JANVIER | AB114: 1793 | AC114: Echecs Infra | AD114: ROP terrain différent de la ROP SI | AJ114: =IF(GRDV[[#This Row],[Synchro]]="OK",SUBTOTAL(3,GRDV[[#This Row],[Synchro]]),"") -> 1 | AK114: =IF(GRDV[[#This Row],[Synchro]]="NOK",SUBTOTAL(3,GRDV[[#This Row],[Synchro]]),"") -> 
A115: 1606 | B115: Raccordement avec synchro | C115: 2022-01-06T11:00:00 | D115: Bachar Abdoulrahim | E115: RIP | F115: 44 LOIRE-ATLANTIQUE - CHATEAUBRIANT RIP LOAN | G115: CHAMBRE | H115: OK | I115: =VLOOKUP(A:A,CODE[#All],2,0) -> Raccordée OK | J115: S1 | K115: =VLOOKUP(J:J,SEM[#All],2,0) -> JANVIER | AB115: 1794 | AC115: Echecs Infra | AD115: PBO introuvable | AJ115: =IF(GRDV[[#This Row],[Synchro]]="OK",SUBTOTAL(3,GRDV[[#This Row],[Synchro]]),"") -> 1 | AK115: =IF(GRDV[[#This Row],[Synchro]]="NOK",SUBTOTAL(3,GRDV[[#This Row],[Synchro]]),"") -> 
A116: 1023 | B116: Refuse tous travaux | C116: 2022-01-06T11:00:00 | D116: Bary Alimou | E116: RIP | F116: 44 LOIRE-ATLANTIQUE - HERIC RIP LOAN | G116: CHAMBRE | H116: NOK | I116: =VLOOKUP(A:A,CODE[#All],2,0) -> Echecs Techniques | J116: S1 | K116: =VLOOKUP(J:J,SEM[#All],2,0) -> JANVIER | AB116: 1795 | AC116: Echecs Infra | AD116: Hotline OI injoignable | AJ116: =IF(GRDV[[#This Row],[Synchro]]="OK",SUBTOTAL(3,GRDV[[#This Row],[Synchro]]),"") ->  | AK116: =IF(GRDV[[#This Row],[Synchro]]="NOK",SUBTOTAL(3,GRDV[[#This Row],[Synchro]]),"") -> 1
A117: 1606 | B117: Raccordement avec synchro | C117: 2022-01-06T11:00:00 | D117: Bordon Tarek | E117: RIP | F117: 44 LOIRE-ATLANTIQUE - CHATEAUBRIANT RIP LOAN | G117: POTEAU | H117: OK | I117: =VLOOKUP(A:A,CODE[#All],2,0) -> Raccordée OK | J117: S1 | K117: =VLOOKUP(J:J,SEM[#All],2,0) -> JANVIER | AB117: 1796 | AC117: Echecs Infra | AD117: ROP sur mauvaise PM | AJ117: =IF(GRDV[[#This Row],[Synchro]]="OK",SUBTOTAL(3,GRDV[[#This Row],[Synchro]]),"") -> 1 | AK117: =IF(GRDV[[#This Row],[Synchro]]="NOK",SUBTOTAL(3,GRDV[[#This Row],[Synchro]]),"") -> 
A118: 1606 | B118: Raccordement avec synchro | C118: 2022-01-06T11:00:00 | D118: Ginet Cyrille | E118: ZMD | F118: 29 Finistere ZMD - Brest | G118: CHAMBRE | H118: OK | I118: =VLOOKUP(A:A,CODE[#All],2,0) -> Raccordée OK | J118: S1 | K118: =VLOOKUP(J:J,SEM[#All],2,0) -> JANVIER | AB118: 1797 | AC118: Echecs Infra | AD118: PM dégradée ou HS sur le terrain | AJ118: =IF(GRDV[[#This Row],[Synchro]]="OK",SUBTOTAL(3,GRDV[[#This Row],[Synchro]]),"") -> 1 | AK118: =IF(GRDV[[#This Row],[Synchro]]="NOK",SUBTOTAL(3,GRDV[[#This Row],[Synchro]]),"") -> 
A119: 1606 | B119: Raccordement avec synchro | C119: 2022-01-06T11:00:00 | D119: Borni Haitem | E119: RIP | F119: 44 LOIRE-ATLANTIQUE - HERIC RIP LOAN | G119: CHAMBRE | H119: OK | I119: =VLOOKUP(A:A,CODE[#All],2,0) -> Raccordée OK | J119: S1 | K119: =VLOOKUP(J:J,SEM[#All],2,0) -> JANVIER | AB119: 1798 | AC119: Echecs Infra | AD119: Affaiblissement trop important | AJ119: =IF(GRDV[[#This Row],[Synchro]]="OK",SUBTOTAL(3,GRDV[[#This Row],[Synchro]]),"") -> 1 | AK119: =IF(GRDV[[#This Row],[Synchro]]="NOK",SUBTOTAL(3,GRDV[[#This Row],[Synchro]]),"") -> 
A120: 1606 | B120: Raccordement avec synchro | C120: 2022-01-06T11:00:00 | D120: Bouraya Riwan | E120: ZMD | F120: 29 Finistere ZMD - Brest | G120: POTEAU | H120: OK | I120: =VLOOKUP(A:A,CODE[#All],2,0) -> Raccordée OK | J120: S1 | K120: =VLOOKUP(J:J,SEM[#All],2,0) -> JANVIER | AB120: 1800 | AC120: Echecs Techniques | AD120: En attente de ressources au PM | AJ120: =IF(GRDV[[#This Row],[Synchro]]="OK",SUBTOTAL(3,GRDV[[#This Row],[Synchro]]),"") -> 1 | AK120: =IF(GRDV[[#This Row],[Synchro]]="NOK",SUBTOTAL(3,GRDV[[#This Row],[Synchro]]),"") -> 
A121: 1606 | B121: Raccordement avec synchro | C121: 2022-01-06T11:00:00 | D121: Fanaoui Salah | E121: ZMD | F121: 29 Finistere ZMD - Brest | G121: POTEAU | H121: OK | I121: =VLOOKUP(A:A,CODE[#All],2,0) -> Raccordée OK | J121: S1 | K121: =VLOOKUP(J:J,SEM[#All],2,0) -> JANVIER | AB121: 1802 | AC121: Echecs Client | AJ121: =IF(GRDV[[#This Row],[Synchro]]="OK",SUBTOTAL(3,GRDV[[#This Row],[Synchro]]),"") -> 1 | AK121: =IF(GRDV[[#This Row],[Synchro]]="NOK",SUBTOTAL(3,GRDV[[#This Row],[Synchro]]),"") -> 
A122: 1606 | B122: Raccordement avec synchro | C122: 2022-01-06T11:00:00 | D122: Ishagthabit Madebo | E122: RIP | F122: 29 Finistere RIP - Douarnenez THDB | G122: CHAMBRE | H122: OK | I122: =VLOOKUP(A:A,CODE[#All],2,0) -> Raccordée OK | J122: S1 | K122: =VLOOKUP(J:J,SEM[#All],2,0) -> JANVIER | AB122: 1804 | AC122: Echecs Techniques | AD122: Cheminement complexe - nécessite une étude | AJ122: =IF(GRDV[[#This Row],[Synchro]]="OK",SUBTOTAL(3,GRDV[[#This Row],[Synchro]]),"") -> 1 | AK122: =IF(GRDV[[#This Row],[Synchro]]="NOK",SUBTOTAL(3,GRDV[[#This Row],[Synchro]]),"") -> 
A123: 1606 | B123: Raccordement avec synchro | C123: 2022-01-06T11:00:00 | D123: Uguen Nicolas | E123: ZMD | F123: 29 Finistere ZMD - Brest | G123: POTEAU | H123: OK | I123: =VLOOKUP(A:A,CODE[#All],2,0) -> Raccordée OK | J123: S1 | K123: =VLOOKUP(J:J,SEM[#All],2,0) -> JANVIER | AB123: 1806 | AC123: Echecs Autre | AD123: Kit POP non recu | AJ123: =IF(GRDV[[#This Row],[Synchro]]="OK",SUBTOTAL(3,GRDV[[#This Row],[Synchro]]),"") -> 1 | AK123: =IF(GRDV[[#This Row],[Synchro]]="NOK",SUBTOTAL(3,GRDV[[#This Row],[Synchro]]),"") -> 
A124: 1606 | B124: Raccordement avec synchro | C124: 2022-01-06T13:00:00 | D124: Fanaoui Salah | E124: ZMD | F124: 29 Finistere ZMD - Brest | G124: STANDARD | H124: OK | I124: =VLOOKUP(A:A,CODE[#All],2,0) -> Raccordée OK | J124: S1 | K124: =VLOOKUP(J:J,SEM[#All],2,0) -> JANVIER | AB124: 3002 | AC124: Raccordée OK | AD124: RDV migXXg éffectué | AJ124: =IF(GRDV[[#This Row],[Synchro]]="OK",SUBTOTAL(3,GRDV[[#This Row],[Synchro]]),"") -> 1 | AK124: =IF(GRDV[[#This Row],[Synchro]]="NOK",SUBTOTAL(3,GRDV[[#This Row],[Synchro]]),"") -> 
A125: 1024 | B125: Autorisation du propriétaire | C125: 2022-01-06T13:00:00 | D125: Gaddour Neji | E125: ZMD | F125: 29 Finistere ZMD - Brest | G125: STANDARD | H125: NOK | I125: =VLOOKUP(A:A,CODE[#All],2,0) -> Echecs Techniques | J125: S1 | K125: =VLOOKUP(J:J,SEM[#All],2,0) -> JANVIER | AB125: 3005 | AC125: Echecs Client | AD125: Client absent | AJ125: =IF(GRDV[[#This Row],[Synchro]]="OK",SUBTOTAL(3,GRDV[[#This Row],[Synchro]]),"") ->  | AK125: =IF(GRDV[[#This Row],[Synchro]]="NOK",SUBTOTAL(3,GRDV[[#This Row],[Synchro]]),"") -> 1
A126: 1606 | B126: Raccordement avec synchro | C126: 2022-01-06T14:00:00 | D126: Ginet Cyrille | E126: ZMD | F126: 29 Finistere ZMD - Brest | G126: POTEAU | H126: OK | I126: =VLOOKUP(A:A,CODE[#All],2,0) -> Raccordée OK | J126: S1 | K126: =VLOOKUP(J:J,SEM[#All],2,0) -> JANVIER | AB126: 3006 | AC126: Echecs Techniques | AD126: RDV migXXg non honoré | AJ126: =IF(GRDV[[#This Row],[Synchro]]="OK",SUBTOTAL(3,GRDV[[#This Row],[Synchro]]),"") -> 1 | AK126: =IF(GRDV[[#This Row],[Synchro]]="NOK",SUBTOTAL(3,GRDV[[#This Row],[Synchro]]),"") -> 
A127: 1606 | B127: Raccordement avec synchro | C127: 2022-01-06T14:00:00 | D127: Ishagthabit Madebo | E127: ZMD | F127: 29 Finistere ZMD - Douarnenez | G127: CHAMBRE | H127: OK | I127: =VLOOKUP(A:A,CODE[#All],2,0) -> Raccordée OK | J127: S1 | K127: =VLOOKUP(J:J,SEM[#All],2,0) -> JANVIER | AB127: 3009 | AC127: Echecs Techniques | AD127: Non cloturé RDV mig 10g | AJ127: =IF(GRDV[[#This Row],[Synchro]]="OK",SUBTOTAL(3,GRDV[[#This Row],[Synchro]]),"") -> 1 | AK127: =IF(GRDV[[#This Row],[Synchro]]="NOK",SUBTOTAL(3,GRDV[[#This Row],[Synchro]]),"") -> 
A128: 1773 | B128: Fourreau à déboucher (extérieur) | C128: 2022-01-06T14:00:00 | D128: Borni Haitem | E128: RIP | F128: 44 LOIRE-ATLANTIQUE - HERIC RIP LOAN | G128: CHAMBRE | H128: NOK | I128: =VLOOKUP(A:A,CODE[#All],2,0) -> Echecs Techniques | J128: S1 | K128: =VLOOKUP(J:J,SEM[#All],2,0) -> JANVIER | AB128: 3011 | AC128: Echecs Infra | AD128: OT non réalisé au NRO | AJ128: =IF(GRDV[[#This Row],[Synchro]]="OK",SUBTOTAL(3,GRDV[[#This Row],[Synchro]]),"") ->  | AK128: =IF(GRDV[[#This Row],[Synchro]]="NOK",SUBTOTAL(3,GRDV[[#This Row],[Synchro]]),"") -> 1
A129: 1606 | B129: Raccordement avec synchro | C129: 2022-01-06T14:00:00 | D129: Bary Alimou | E129: RIP | F129: 44 LOIRE-ATLANTIQUE - HERIC RIP LOAN | G129: CHAMBRE | H129: OK | I129: =VLOOKUP(A:A,CODE[#All],2,0) -> Raccordée OK | J129: S1 | K129: =VLOOKUP(J:J,SEM[#All],2,0) -> JANVIER | AB129: 3012 | AC129: Echecs Autre | AD129: Module non échangé | AJ129: =IF(GRDV[[#This Row],[Synchro]]="OK",SUBTOTAL(3,GRDV[[#This Row],[Synchro]]),"") -> 1 | AK129: =IF(GRDV[[#This Row],[Synchro]]="NOK",SUBTOTAL(3,GRDV[[#This Row],[Synchro]]),"") -> 
A130: 1606 | B130: Raccordement avec synchro | C130: 2022-01-06T14:00:00 | D130: Belgacem Amine | E130: RIP | F130: 44 LOIRE-ATLANTIQUE - HERIC RIP LOAN | G130: POTEAU | H130: OK | I130: =VLOOKUP(A:A,CODE[#All],2,0) -> Raccordée OK | J130: S1 | K130: =VLOOKUP(J:J,SEM[#All],2,0) -> JANVIER | AB130: 3013 | AC130: Echecs Autre | AD130: Etat box ER90-XX | AJ130: =IF(GRDV[[#This Row],[Synchro]]="OK",SUBTOTAL(3,GRDV[[#This Row],[Synchro]]),"") -> 1 | AK130: =IF(GRDV[[#This Row],[Synchro]]="NOK",SUBTOTAL(3,GRDV[[#This Row],[Synchro]]),"") -> 
A131: 1022 | B131: Client réalise les travaux | C131: 2022-01-06T14:00:00 | D131: Bordon Tarek | E131: RIP | F131: 44 LOIRE-ATLANTIQUE - CHATEAUBRIANT RIP LOAN | G131: POTEAU | H131: NOK | I131: =VLOOKUP(A:A,CODE[#All],2,0) -> Echecs Techniques | J131: S1 | K131: =VLOOKUP(J:J,SEM[#All],2,0) -> JANVIER | AB131: 3014 | AC131: Echecs Infra | AD131: Etat box - Etape 2 | AJ131: =IF(GRDV[[#This Row],[Synchro]]="OK",SUBTOTAL(3,GRDV[[#This Row],[Synchro]]),"") ->  | AK131: =IF(GRDV[[#This Row],[Synchro]]="NOK",SUBTOTAL(3,GRDV[[#This Row],[Synchro]]),"") -> 1
A132: 1606 | B132: Raccordement avec synchro | C132: 2022-01-06T14:00:00 | D132: Bachar Abdoulrahim | E132: RIP | F132: 44 LOIRE-ATLANTIQUE - CHATEAUBRIANT RIP LOAN | G132: CHAMBRE | H132: OK | I132: =VLOOKUP(A:A,CODE[#All],2,0) -> Raccordée OK | J132: S1 | K132: =VLOOKUP(J:J,SEM[#All],2,0) -> JANVIER | AB132: 3015 | AC132: Echecs Autre | AD132: Etat box - Etape 1 | AJ132: =IF(GRDV[[#This Row],[Synchro]]="OK",SUBTOTAL(3,GRDV[[#This Row],[Synchro]]),"") -> 1 | AK132: =IF(GRDV[[#This Row],[Synchro]]="NOK",SUBTOTAL(3,GRDV[[#This Row],[Synchro]]),"") -> 
A133: 1606 | B133: Raccordement avec synchro | C133: 2022-01-06T14:00:00 | D133: Bouraya Riwan | E133: ZMD | F133: 29 Finistere ZMD - Brest | G133: STANDARD | H133: OK | I133: =VLOOKUP(A:A,CODE[#All],2,0) -> Raccordée OK | J133: S1 | K133: =VLOOKUP(J:J,SEM[#All],2,0) -> JANVIER | AB133: 3016 | AC133: Echecs Autre | AD133: Etat box - Eteinte | AJ133: =IF(GRDV[[#This Row],[Synchro]]="OK",SUBTOTAL(3,GRDV[[#This Row],[Synchro]]),"") -> 1 | AK133: =IF(GRDV[[#This Row],[Synchro]]="NOK",SUBTOTAL(3,GRDV[[#This Row],[Synchro]]),"") -> 
A134: 1606 | B134: Raccordement avec synchro | C134: 2022-01-06T15:00:00 | D134: Gaddour Neji | E134: ZMD | F134: 29 Finistere ZMD - Brest | G134: STANDARD | H134: =IF(A134>1606,"NOK",IF(A134<1606,"NOK",IF(A134=1606,"OK"))) -> OK | I134: =VLOOKUP(A:A,CODE[#All],2,0) -> Raccordée OK | J134: S1 | K134: =VLOOKUP(J:J,SEM[#All],2,0) -> JANVIER | AB134: 3018 | AC134: Echecs Autre | AD134: Module non recu | AJ134: =IF(GRDV[[#This Row],[Synchro]]="OK",SUBTOTAL(3,GRDV[[#This Row],[Synchro]]),"") -> 1 | AK134: =IF(GRDV[[#This Row],[Synchro]]="NOK",SUBTOTAL(3,GRDV[[#This Row],[Synchro]]),"") -> 
A135: 1606 | B135: Raccordement avec synchro | C135: 2022-01-06T16:00:00 | D135: Uguen Nicolas | E135: ZMD | F135: 29 Finistere ZMD - Brest | G135: STANDARD | H135: OK | I135: =VLOOKUP(A:A,CODE[#All],2,0) -> Raccordée OK | J135: S1 | K135: =VLOOKUP(J:J,SEM[#All],2,0) -> JANVIER | AB135: 3020 | AC135: Echecs Autre | AD135: Languette cassée | AJ135: =IF(GRDV[[#This Row],[Synchro]]="OK",SUBTOTAL(3,GRDV[[#This Row],[Synchro]]),"") -> 1 | AK135: =IF(GRDV[[#This Row],[Synchro]]="NOK",SUBTOTAL(3,GRDV[[#This Row],[Synchro]]),"") -> 
A136: 1606 | B136: Raccordement avec synchro | C136: 2022-01-07T08:00:00 | D136: Bordon Tarek | E136: RIP | F136: 44 LOIRE-ATLANTIQUE - CHATEAUBRIANT RIP LOAN | G136: FACADE | H136: OK | I136: =VLOOKUP(A:A,CODE[#All],2,0) -> Raccordée OK | J136: S1 | K136: =VLOOKUP(J:J,SEM[#All],2,0) -> JANVIER | AB136: 3021 | AC136: Echecs Infra | AD136: Pas de signal | AJ136: =IF(GRDV[[#This Row],[Synchro]]="OK",SUBTOTAL(3,GRDV[[#This Row],[Synchro]]),"") -> 1 | AK136: =IF(GRDV[[#This Row],[Synchro]]="NOK",SUBTOTAL(3,GRDV[[#This Row],[Synchro]]),"") -> 
A137: 1606 | B137: Raccordement avec synchro | C137: 2022-01-07T08:00:00 | D137: Bachar Abdoulrahim | E137: RIP | F137: 44 LOIRE-ATLANTIQUE - CHATEAUBRIANT RIP LOAN | G137: CHAMBRE | H137: OK | I137: =VLOOKUP(A:A,CODE[#All],2,0) -> Raccordée OK | J137: S1 | K137: =VLOOKUP(J:J,SEM[#All],2,0) -> JANVIER | AB137: 3022 | AC137: Echecs Infra | AD137: Etat box - Etape 3 | AJ137: =IF(GRDV[[#This Row],[Synchro]]="OK",SUBTOTAL(3,GRDV[[#This Row],[Synchro]]),"") -> 1 | AK137: =IF(GRDV[[#This Row],[Synchro]]="NOK",SUBTOTAL(3,GRDV[[#This Row],[Synchro]]),"") -> 
A138: 1022 | B138: Client réalise les travaux | C138: 2022-01-07T08:00:00 | D138: Belgacem Amine | E138: RIP | F138: 44 LOIRE-ATLANTIQUE - HERIC RIP LOAN | G138: POTEAU | H138: NOK | I138: =VLOOKUP(A:A,CODE[#All],2,0) -> Echecs Techniques | J138: S1 | K138: =VLOOKUP(J:J,SEM[#All],2,0) -> JANVIER | AJ138: =IF(GRDV[[#This Row],[Synchro]]="OK",SUBTOTAL(3,GRDV[[#This Row],[Synchro]]),"") ->  | AK138: =IF(GRDV[[#This Row],[Synchro]]="NOK",SUBTOTAL(3,GRDV[[#This Row],[Synchro]]),"") -> 1
A139: 1606 | B139: Raccordement avec synchro | C139: 2022-01-07T08:00:00 | D139: Uguen Nicolas | E139: ZMD | F139: 29 Finistere ZMD - Brest | G139: POTEAU | H139: OK | I139: =VLOOKUP(A:A,CODE[#All],2,0) -> Raccordée OK | J139: S1 | K139: =VLOOKUP(J:J,SEM[#All],2,0) -> JANVIER | AJ139: =IF(GRDV[[#This Row],[Synchro]]="OK",SUBTOTAL(3,GRDV[[#This Row],[Synchro]]),"") -> 1 | AK139: =IF(GRDV[[#This Row],[Synchro]]="NOK",SUBTOTAL(3,GRDV[[#This Row],[Synchro]]),"") -> 
A140: 1606 | B140: Raccordement avec synchro | C140: 2022-01-07T08:00:00 | D140: Borni Haitem | E140: RIP | F140: 44 LOIRE-ATLANTIQUE - HERIC RIP LOAN | G140: CHAMBRE | H140: OK | I140: =VLOOKUP(A:A,CODE[#All],2,0) -> Raccordée OK | J140: S1 | K140: =VLOOKUP(J:J,SEM[#All],2,0) -> JANVIER | AJ140: =IF(GRDV[[#This Row],[Synchro]]="OK",SUBTOTAL(3,GRDV[[#This Row],[Synchro]]),"") -> 1 | AK140: =IF(GRDV[[#This Row],[Synchro]]="NOK",SUBTOTAL(3,GRDV[[#This Row],[Synchro]]),"") -> 
A141: 1606 | B141: Raccordement avec synchro | C141: 2022-01-07T08:00:00 | D141: Fanaoui Salah | E141: ZMD | F141: 29 Finistere ZMD - Brest | G141: POTEAU | H141: OK | I141: =VLOOKUP(A:A,CODE[#All],2,0) -> Raccordée OK | J141: S1 | K141: =VLOOKUP(J:J,SEM[#All],2,0) -> JANVIER | AJ141: =IF(GRDV[[#This Row],[Synchro]]="OK",SUBTOTAL(3,GRDV[[#This Row],[Synchro]]),"") -> 1 | AK141: =IF(GRDV[[#This Row],[Synchro]]="NOK",SUBTOTAL(3,GRDV[[#This Row],[Synchro]]),"") -> 
A142: 1606 | B142: Raccordement avec synchro | C142: 2022-01-07T08:00:00 | D142: Gaddour Neji | E142: ZMD | F142: 29 Finistere ZMD - Brest | G142: STANDARD | H142: OK | I142: =VLOOKUP(A:A,CODE[#All],2,0) -> Raccordée OK | J142: S1 | K142: =VLOOKUP(J:J,SEM[#All],2,0) -> JANVIER | AJ142: =IF(GRDV[[#This Row],[Synchro]]="OK",SUBTOTAL(3,GRDV[[#This Row],[Synchro]]),"") -> 1 | AK142: =IF(GRDV[[#This Row],[Synchro]]="NOK",SUBTOTAL(3,GRDV[[#This Row],[Synchro]]),"") -> 
A143: 1606 | B143: Raccordement avec synchro | C143: 2022-01-07T08:00:00 | D143: Bouraya Riwan | E143: ZMD | F143: 29 Finistere ZMD - Brest | G143: POTEAU | H143: OK | I143: =VLOOKUP(A:A,CODE[#All],2,0) -> Raccordée OK | J143: S1 | K143: =VLOOKUP(J:J,SEM[#All],2,0) -> JANVIER | AJ143: =IF(GRDV[[#This Row],[Synchro]]="OK",SUBTOTAL(3,GRDV[[#This Row],[Synchro]]),"") -> 1 | AK143: =IF(GRDV[[#This Row],[Synchro]]="NOK",SUBTOTAL(3,GRDV[[#This Row],[Synchro]]),"") -> 
A144: 1606 | B144: Raccordement avec synchro | C144: 2022-01-07T10:00:00 | D144: Uguen Nicolas | E144: ZMD | F144: 29 Finistere ZMD - Brest | G144: STANDARD | H144: OK | I144: =VLOOKUP(A:A,CODE[#All],2,0) -> Raccordée OK | J144: S1 | K144: =VLOOKUP(J:J,SEM[#All],2,0) -> JANVIER | AJ144: =IF(GRDV[[#This Row],[Synchro]]="OK",SUBTOTAL(3,GRDV[[#This Row],[Synchro]]),"") -> 1 | AK144: =IF(GRDV[[#This Row],[Synchro]]="NOK",SUBTOTAL(3,GRDV[[#This Row],[Synchro]]),"") -> 
A145: 1606 | B145: Raccordement avec synchro | C145: 2022-01-07T11:00:00 | D145: Bernier Brandon | E145: RIP | F145: 44 LOIRE-ATLANTIQUE - HERIC RIP LOAN | G145: CHAMBRE | H145: OK | I145: =VLOOKUP(A:A,CODE[#All],2,0) -> Raccordée OK | J145: S1 | K145: =VLOOKUP(J:J,SEM[#All],2,0) -> JANVIER | AJ145: =IF(GRDV[[#This Row],[Synchro]]="OK",SUBTOTAL(3,GRDV[[#This Row],[Synchro]]),"") -> 1 | AK145: =IF(GRDV[[#This Row],[Synchro]]="NOK",SUBTOTAL(3,GRDV[[#This Row],[Synchro]]),"") -> 
A146: 1606 | B146: Raccordement avec synchro | C146: 2022-01-07T11:00:00 | D146: Borni Haitem | E146: RIP | F146: 44 LOIRE-ATLANTIQUE - HERIC RIP LOAN | G146: CHAMBRE | H146: OK | I146: =VLOOKUP(A:A,CODE[#All],2,0) -> Raccordée OK | J146: S1 | K146: =VLOOKUP(J:J,SEM[#All],2,0) -> JANVIER | AJ146: =IF(GRDV[[#This Row],[Synchro]]="OK",SUBTOTAL(3,GRDV[[#This Row],[Synchro]]),"") -> 1 | AK146: =IF(GRDV[[#This Row],[Synchro]]="NOK",SUBTOTAL(3,GRDV[[#This Row],[Synchro]]),"") -> 
A147: 1606 | B147: Raccordement avec synchro | C147: 2022-01-07T11:00:00 | D147: Bordon Tarek | E147: RIP | F147: 44 LOIRE-ATLANTIQUE - CHATEAUBRIANT RIP LOAN | G147: POTEAU | H147: OK | I147: =VLOOKUP(A:A,CODE[#All],2,0) -> Raccordée OK | J147: S1 | K147: =VLOOKUP(J:J,SEM[#All],2,0) -> JANVIER | AJ147: =IF(GRDV[[#This Row],[Synchro]]="OK",SUBTOTAL(3,GRDV[[#This Row],[Synchro]]),"") -> 1 | AK147: =IF(GRDV[[#This Row],[Synchro]]="NOK",SUBTOTAL(3,GRDV[[#This Row],[Synchro]]),"") -> 
A148: 1743 | B148: Free (freebox) | C148: 2022-01-07T11:00:00 | D148: Bachar Abdoulrahim | E148: RIP | F148: 44 LOIRE-ATLANTIQUE - CHATEAUBRIANT RIP LOAN | G148: STANDARD | H148: NOK | I148: =VLOOKUP(A:A,CODE[#All],2,0) -> Echecs Autre | J148: S1 | K148: =VLOOKUP(J:J,SEM[#All],2,0) -> JANVIER | AJ148: =IF(GRDV[[#This Row],[Synchro]]="OK",SUBTOTAL(3,GRDV[[#This Row],[Synchro]]),"") ->  | AK148: =IF(GRDV[[#This Row],[Synchro]]="NOK",SUBTOTAL(3,GRDV[[#This Row],[Synchro]]),"") -> 1
A149: 1606 | B149: Raccordement avec synchro | C149: 2022-01-07T11:00:00 | D149: Belgacem Amine | E149: RIP | F149: 44 LOIRE-ATLANTIQUE - HERIC RIP LOAN | G149: POTEAU | H149: OK | I149: =VLOOKUP(A:A,CODE[#All],2,0) -> Raccordée OK | J149: S1 | K149: =VLOOKUP(J:J,SEM[#All],2,0) -> JANVIER | AJ149: =IF(GRDV[[#This Row],[Synchro]]="OK",SUBTOTAL(3,GRDV[[#This Row],[Synchro]]),"") -> 1 | AK149: =IF(GRDV[[#This Row],[Synchro]]="NOK",SUBTOTAL(3,GRDV[[#This Row],[Synchro]]),"") -> 
A150: 1606 | B150: Raccordement avec synchro | C150: 2022-01-07T11:00:00 | D150: Ginet Cyrille | E150: ZMD | F150: 29 Finistere ZMD - Douarnenez | G150: CHAMBRE | H150: OK | I150: =VLOOKUP(A:A,CODE[#All],2,0) -> Raccordée OK | J150: S1 | K150: =VLOOKUP(J:J,SEM[#All],2,0) -> JANVIER | AJ150: =IF(GRDV[[#This Row],[Synchro]]="OK",SUBTOTAL(3,GRDV[[#This Row],[Synchro]]),"") -> 1 | AK150: =IF(GRDV[[#This Row],[Synchro]]="NOK",SUBTOTAL(3,GRDV[[#This Row],[Synchro]]),"") -> 
A151: 1606 | B151: Raccordement avec synchro | C151: 2022-01-07T11:00:00 | D151: Gaddour Neji | E151: ZMD | F151: 29 Finistere ZMD - Brest | G151: STANDARD | H151: OK | I151: =VLOOKUP(A:A,CODE[#All],2,0) -> Raccordée OK | J151: S1 | K151: =VLOOKUP(J:J,SEM[#All],2,0) -> JANVIER | AJ151: =IF(GRDV[[#This Row],[Synchro]]="OK",SUBTOTAL(3,GRDV[[#This Row],[Synchro]]),"") -> 1 | AK151: =IF(GRDV[[#This Row],[Synchro]]="NOK",SUBTOTAL(3,GRDV[[#This Row],[Synchro]]),"") -> 
A152: 1606 | B152: Raccordement avec synchro | C152: 2022-01-07T11:00:00 | D152: Ahmed Zakaria | E152: ZMD | F152: 29 Finistere ZMD - Brest | G152: STANDARD | H152: OK | I152: =VLOOKUP(A:A,CODE[#All],2,0) -> Raccordée OK | J152: S1 | K152: =VLOOKUP(J:J,SEM[#All],2,0) -> JANVIER | AJ152: =IF(GRDV[[#This Row],[Synchro]]="OK",SUBTOTAL(3,GRDV[[#This Row],[Synchro]]),"") -> 1 | AK152: =IF(GRDV[[#This Row],[Synchro]]="NOK",SUBTOTAL(3,GRDV[[#This Row],[Synchro]]),"") -> 
A153: 1606 | B153: Raccordement avec synchro | C153: 2022-01-07T11:00:00 | D153: Bouraya Riwan | E153: ZMD | F153: 29 Finistere ZMD - Brest | G153: POTEAU | H153: OK | I153: =VLOOKUP(A:A,CODE[#All],2,0) -> Raccordée OK | J153: S1 | K153: =VLOOKUP(J:J,SEM[#All],2,0) -> JANVIER | AJ153: =IF(GRDV[[#This Row],[Synchro]]="OK",SUBTOTAL(3,GRDV[[#This Row],[Synchro]]),"") -> 1 | AK153: =IF(GRDV[[#This Row],[Synchro]]="NOK",SUBTOTAL(3,GRDV[[#This Row],[Synchro]]),"") -> 
A154: 1606 | B154: Raccordement avec synchro | C154: 2022-01-07T11:00:00 | D154: Fanaoui Salah | E154: ZMD | F154: 29 Finistere ZMD - Brest | G154: CHAMBRE | H154: OK | I154: =VLOOKUP(A:A,CODE[#All],2,0) -> Raccordée OK | J154: S1 | K154: =VLOOKUP(J:J,SEM[#All],2,0) -> JANVIER | AJ154: =IF(GRDV[[#This Row],[Synchro]]="OK",SUBTOTAL(3,GRDV[[#This Row],[Synchro]]),"") -> 1 | AK154: =IF(GRDV[[#This Row],[Synchro]]="NOK",SUBTOTAL(3,GRDV[[#This Row],[Synchro]]),"") -> 
A155: 1606 | B155: Raccordement avec synchro | C155: 2022-01-07T13:00:00 | D155: Ahmed Zakaria | E155: ZMD | F155: 29 Finistere ZMD - Morlaix | G155: STANDARD | H155: OK | I155: =VLOOKUP(A:A,CODE[#All],2,0) -> Raccordée OK | J155: S1 | K155: =VLOOKUP(J:J,SEM[#All],2,0) -> JANVIER | AJ155: =IF(GRDV[[#This Row],[Synchro]]="OK",SUBTOTAL(3,GRDV[[#This Row],[Synchro]]),"") -> 1 | AK155: =IF(GRDV[[#This Row],[Synchro]]="NOK",SUBTOTAL(3,GRDV[[#This Row],[Synchro]]),"") -> 
A156: 1606 | B156: Raccordement avec synchro | C156: 2022-01-07T13:00:00 | D156: Gaddour Neji | E156: ZMD | F156: 29 Finistere ZMD - Brest | G156: STANDARD | H156: OK | I156: =VLOOKUP(A:A,CODE[#All],2,0) -> Raccordée OK | J156: S1 | K156: =VLOOKUP(J:J,SEM[#All],2,0) -> JANVIER | AJ156: =IF(GRDV[[#This Row],[Synchro]]="OK",SUBTOTAL(3,GRDV[[#This Row],[Synchro]]),"") -> 1 | AK156: =IF(GRDV[[#This Row],[Synchro]]="NOK",SUBTOTAL(3,GRDV[[#This Row],[Synchro]]),"") -> 
A157: 1606 | B157: Raccordement avec synchro | C157: 2022-01-07T13:00:00 | D157: Uguen Nicolas | E157: ZMD | F157: 29 Finistere ZMD - Brest | G157: STANDARD | H157: OK | I157: =VLOOKUP(A:A,CODE[#All],2,0) -> Raccordée OK | J157: S1 | K157: =VLOOKUP(J:J,SEM[#All],2,0) -> JANVIER | AJ157: =IF(GRDV[[#This Row],[Synchro]]="OK",SUBTOTAL(3,GRDV[[#This Row],[Synchro]]),"") -> 1 | AK157: =IF(GRDV[[#This Row],[Synchro]]="NOK",SUBTOTAL(3,GRDV[[#This Row],[Synchro]]),"") -> 
A158: 1023 | B158: Refuse tous travaux | C158: 2022-01-07T14:00:00 | D158: Bernier Brandon | E158: RIP | F158: 44 LOIRE-ATLANTIQUE - HERIC RIP LOAN | G158: CHAMBRE | H158: NOK | I158: =VLOOKUP(A:A,CODE[#All],2,0) -> Echecs Techniques | J158: S1 | K158: =VLOOKUP(J:J,SEM[#All],2,0) -> JANVIER | AJ158: =IF(GRDV[[#This Row],[Synchro]]="OK",SUBTOTAL(3,GRDV[[#This Row],[Synchro]]),"") ->  | AK158: =IF(GRDV[[#This Row],[Synchro]]="NOK",SUBTOTAL(3,GRDV[[#This Row],[Synchro]]),"") -> 1
A159: 1606 | B159: Raccordement avec synchro | C159: 2022-01-07T14:00:00 | D159: Uguen Nicolas | E159: ZMD | F159: 29 Finistere ZMD - Brest | G159: POTEAU | H159: OK | I159: =VLOOKUP(A:A,CODE[#All],2,0) -> Raccordée OK | J159: S1 | K159: =VLOOKUP(J:J,SEM[#All],2,0) -> JANVIER | AJ159: =IF(GRDV[[#This Row],[Synchro]]="OK",SUBTOTAL(3,GRDV[[#This Row],[Synchro]]),"") -> 1 | AK159: =IF(GRDV[[#This Row],[Synchro]]="NOK",SUBTOTAL(3,GRDV[[#This Row],[Synchro]]),"") -> 
A160: 1606 | B160: Raccordement avec synchro | C160: 2022-01-07T14:00:00 | D160: Gaddour Neji | E160: ZMD | F160: 29 Finistere ZMD - Brest | G160: STANDARD | H160: OK | I160: =VLOOKUP(A:A,CODE[#All],2,0) -> Raccordée OK | J160: S1 | K160: =VLOOKUP(J:J,SEM[#All],2,0) -> JANVIER | AJ160: =IF(GRDV[[#This Row],[Synchro]]="OK",SUBTOTAL(3,GRDV[[#This Row],[Synchro]]),"") -> 1 | AK160: =IF(GRDV[[#This Row],[Synchro]]="NOK",SUBTOTAL(3,GRDV[[#This Row],[Synchro]]),"") -> 
A161: 1023 | B161: Refuse tous travaux | C161: 2022-01-07T14:00:00 | D161: Belgacem Amine | E161: RIP | F161: 44 LOIRE-ATLANTIQUE - HERIC RIP LOAN | G161: POTEAU | H161: NOK | I161: =VLOOKUP(A:A,CODE[#All],2,0) -> Echecs Techniques | J161: S1 | K161: =VLOOKUP(J:J,SEM[#All],2,0) -> JANVIER | AJ161: =IF(GRDV[[#This Row],[Synchro]]="OK",SUBTOTAL(3,GRDV[[#This Row],[Synchro]]),"") ->  | AK161: =IF(GRDV[[#This Row],[Synchro]]="NOK",SUBTOTAL(3,GRDV[[#This Row],[Synchro]]),"") -> 1
A162: 1773 | B162: Fourreau à déboucher (extérieur) | C162: 2022-01-07T14:00:00 | D162: Borni Haitem | E162: RIP | F162: 44 LOIRE-ATLANTIQUE - HERIC RIP LOAN | G162: CHAMBRE | H162: NOK | I162: =VLOOKUP(A:A,CODE[#All],2,0) -> Echecs Techniques | J162: S1 | K162: =VLOOKUP(J:J,SEM[#All],2,0) -> JANVIER | AJ162: =IF(GRDV[[#This Row],[Synchro]]="OK",SUBTOTAL(3,GRDV[[#This Row],[Synchro]]),"") ->  | AK162: =IF(GRDV[[#This Row],[Synchro]]="NOK",SUBTOTAL(3,GRDV[[#This Row],[Synchro]]),"") -> 1
A163: 1606 | B163: Raccordement avec synchro | C163: 2022-01-07T14:00:00 | D163: Bordon Tarek | E163: RIP | F163: 44 LOIRE-ATLANTIQUE - CHATEAUBRIANT RIP LOAN | G163: POTEAU | H163: OK | I163: =VLOOKUP(A:A,CODE[#All],2,0) -> Raccordée OK | J163: S1 | K163: =VLOOKUP(J:J,SEM[#All],2,0) -> JANVIER | AJ163: =IF(GRDV[[#This Row],[Synchro]]="OK",SUBTOTAL(3,GRDV[[#This Row],[Synchro]]),"") -> 1 | AK163: =IF(GRDV[[#This Row],[Synchro]]="NOK",SUBTOTAL(3,GRDV[[#This Row],[Synchro]]),"") -> 
A164: 1024 | B164: Autorisation du propriétaire | C164: 2022-01-07T14:00:00 | D164: Fanaoui Salah | E164: ZMD | F164: 29 Finistere ZMD - Brest | G164: CHAMBRE | H164: NOK | I164: =VLOOKUP(A:A,CODE[#All],2,0) -> Echecs Techniques | J164: S1 | K164: =VLOOKUP(J:J,SEM[#All],2,0) -> JANVIER | AJ164: =IF(GRDV[[#This Row],[Synchro]]="OK",SUBTOTAL(3,GRDV[[#This Row],[Synchro]]),"") ->  | AK164: =IF(GRDV[[#This Row],[Synchro]]="NOK",SUBTOTAL(3,GRDV[[#This Row],[Synchro]]),"") -> 1
A165: 1606 | B165: Raccordement avec synchro | C165: 2022-01-07T14:00:00 | D165: Bouraya Riwan | E165: ZMD | F165: 29 Finistere ZMD - Brest | G165: POTEAU | H165: OK | I165: =VLOOKUP(A:A,CODE[#All],2,0) -> Raccordée OK | J165: S1 | K165: =VLOOKUP(J:J,SEM[#All],2,0) -> JANVIER | AJ165: =IF(GRDV[[#This Row],[Synchro]]="OK",SUBTOTAL(3,GRDV[[#This Row],[Synchro]]),"") -> 1 | AK165: =IF(GRDV[[#This Row],[Synchro]]="NOK",SUBTOTAL(3,GRDV[[#This Row],[Synchro]]),"") -> 
A166: 1606 | B166: Raccordement avec synchro | C166: 2022-01-08T08:00:00 | D166: Uguen Nicolas | E166: ZMD | F166: 29 Finistere ZMD - Brest | G166: CHAMBRE | H166: OK | I166: =VLOOKUP(A:A,CODE[#All],2,0) -> Raccordée OK | J166: S1 | K166: =VLOOKUP(J:J,SEM[#All],2,0) -> JANVIER | AJ166: =IF(GRDV[[#This Row],[Synchro]]="OK",SUBTOTAL(3,GRDV[[#This Row],[Synchro]]),"") -> 1 | AK166: =IF(GRDV[[#This Row],[Synchro]]="NOK",SUBTOTAL(3,GRDV[[#This Row],[Synchro]]),"") -> 
A167: 407 | B167: Client absent | C167: 2022-01-08T08:00:00 | D167: Ahmed Zakaria | E167: ZMD | F167: 29 Finistere ZMD - Brest | G167: STANDARD | H167: NOK | I167: =VLOOKUP(A:A,CODE[#All],2,0) -> Echecs Client | J167: S1 | K167: =VLOOKUP(J:J,SEM[#All],2,0) -> JANVIER | AJ167: =IF(GRDV[[#This Row],[Synchro]]="OK",SUBTOTAL(3,GRDV[[#This Row],[Synchro]]),"") ->  | AK167: =IF(GRDV[[#This Row],[Synchro]]="NOK",SUBTOTAL(3,GRDV[[#This Row],[Synchro]]),"") -> 1
A168: 1606 | B168: Raccordement avec synchro | C168: 2022-01-08T08:00:00 | D168: Fanaoui Salah | E168: ZMD | F168: 29 Finistere ZMD - Brest | G168: STANDARD | H168: OK | I168: =VLOOKUP(A:A,CODE[#All],2,0) -> Raccordée OK | J168: S1 | K168: =VLOOKUP(J:J,SEM[#All],2,0) -> JANVIER | AJ168: =IF(GRDV[[#This Row],[Synchro]]="OK",SUBTOTAL(3,GRDV[[#This Row],[Synchro]]),"") -> 1 | AK168: =IF(GRDV[[#This Row],[Synchro]]="NOK",SUBTOTAL(3,GRDV[[#This Row],[Synchro]]),"") -> 
A169: 1606 | B169: Raccordement avec synchro | C169: 2022-01-08T08:00:00 | D169: Gaddour Neji | E169: ZMD | F169: 29 Finistere ZMD - Morlaix | G169: STANDARD | H169: OK | I169: =VLOOKUP(A:A,CODE[#All],2,0) -> Raccordée OK | J169: S1 | K169: =VLOOKUP(J:J,SEM[#All],2,0) -> JANVIER | AJ169: =IF(GRDV[[#This Row],[Synchro]]="OK",SUBTOTAL(3,GRDV[[#This Row],[Synchro]]),"") -> 1 | AK169: =IF(GRDV[[#This Row],[Synchro]]="NOK",SUBTOTAL(3,GRDV[[#This Row],[Synchro]]),"") -> 
A170: 1606 | B170: Raccordement avec synchro | C170: 2022-01-08T09:00:00 | D170: Ahmed Zakaria | E170: ZMD | F170: 29 Finistere ZMD - Brest | G170: STANDARD | H170: OK | I170: =VLOOKUP(A:A,CODE[#All],2,0) -> Raccordée OK | J170: S1 | K170: =VLOOKUP(J:J,SEM[#All],2,0) -> JANVIER | AJ170: =IF(GRDV[[#This Row],[Synchro]]="OK",SUBTOTAL(3,GRDV[[#This Row],[Synchro]]),"") -> 1 | AK170: =IF(GRDV[[#This Row],[Synchro]]="NOK",SUBTOTAL(3,GRDV[[#This Row],[Synchro]]),"") -> 
A171: 1606 | B171: Raccordement avec synchro | C171: 2022-01-08T10:00:00 | D171: Ahmed Zakaria | E171: ZMD | F171: 29 Finistere ZMD - Brest | G171: STANDARD | H171: OK | I171: =VLOOKUP(A:A,CODE[#All],2,0) -> Raccordée OK | J171: S1 | K171: =VLOOKUP(J:J,SEM[#All],2,0) -> JANVIER | AJ171: =IF(GRDV[[#This Row],[Synchro]]="OK",SUBTOTAL(3,GRDV[[#This Row],[Synchro]]),"") -> 1 | AK171: =IF(GRDV[[#This Row],[Synchro]]="NOK",SUBTOTAL(3,GRDV[[#This Row],[Synchro]]),"") -> 
A172: 1606 | B172: Raccordement avec synchro | C172: 2022-01-08T10:00:00 | D172: Fanaoui Salah | E172: ZMD | F172: 29 Finistere ZMD - Brest | G172: STANDARD | H172: OK | I172: =VLOOKUP(A:A,CODE[#All],2,0) -> Raccordée OK | J172: S1 | K172: =VLOOKUP(J:J,SEM[#All],2,0) -> JANVIER | AJ172: =IF(GRDV[[#This Row],[Synchro]]="OK",SUBTOTAL(3,GRDV[[#This Row],[Synchro]]),"") -> 1 | AK172: =IF(GRDV[[#This Row],[Synchro]]="NOK",SUBTOTAL(3,GRDV[[#This Row],[Synchro]]),"") -> 
A173: 1606 | B173: Raccordement avec synchro | C173: 2022-01-08T11:00:00 | D173: Uguen Nicolas | E173: ZMD | F173: 29 Finistere ZMD - Brest | G173: POTEAU | H173: OK | I173: =VLOOKUP(A:A,CODE[#All],2,0) -> Raccordée OK | J173: S1 | K173: =VLOOKUP(J:J,SEM[#All],2,0) -> JANVIER | AJ173: =IF(GRDV[[#This Row],[Synchro]]="OK",SUBTOTAL(3,GRDV[[#This Row],[Synchro]]),"") -> 1 | AK173: =IF(GRDV[[#This Row],[Synchro]]="NOK",SUBTOTAL(3,GRDV[[#This Row],[Synchro]]),"") -> 
A174: 1606 | B174: Raccordement avec synchro | C174: 2022-01-08T13:00:00 | D174: Gaddour Neji | E174: ZMD | F174: 29 Finistere ZMD - Morlaix | G174: STANDARD | H174: OK | I174: =VLOOKUP(A:A,CODE[#All],2,0) -> Raccordée OK | J174: S1 | K174: =VLOOKUP(J:J,SEM[#All],2,0) -> JANVIER | AJ174: =IF(GRDV[[#This Row],[Synchro]]="OK",SUBTOTAL(3,GRDV[[#This Row],[Synchro]]),"") -> 1 | AK174: =IF(GRDV[[#This Row],[Synchro]]="NOK",SUBTOTAL(3,GRDV[[#This Row],[Synchro]]),"") -> 
A175: 1606 | B175: Raccordement avec synchro | C175: 2022-01-08T13:00:00 | D175: Fanaoui Salah | E175: ZMD | F175: 29 Finistere ZMD - Brest | G175: STANDARD | H175: OK | I175: =VLOOKUP(A:A,CODE[#All],2,0) -> Raccordée OK | J175: S1 | K175: =VLOOKUP(J:J,SEM[#All],2,0) -> JANVIER | AJ175: =IF(GRDV[[#This Row],[Synchro]]="OK",SUBTOTAL(3,GRDV[[#This Row],[Synchro]]),"") -> 1 | AK175: =IF(GRDV[[#This Row],[Synchro]]="NOK",SUBTOTAL(3,GRDV[[#This Row],[Synchro]]),"") -> 
A176: 1606 | B176: Raccordement avec synchro | C176: 2022-01-08T13:00:00 | D176: Ahmed Zakaria | E176: ZMD | F176: 29 Finistere ZMD - Brest | G176: STANDARD | H176: OK | I176: =VLOOKUP(A:A,CODE[#All],2,0) -> Raccordée OK | J176: S1 | K176: =VLOOKUP(J:J,SEM[#All],2,0) -> JANVIER | AJ176: =IF(GRDV[[#This Row],[Synchro]]="OK",SUBTOTAL(3,GRDV[[#This Row],[Synchro]]),"") -> 1 | AK176: =IF(GRDV[[#This Row],[Synchro]]="NOK",SUBTOTAL(3,GRDV[[#This Row],[Synchro]]),"") -> 
A177: 1606 | B177: Raccordement avec synchro | C177: 2022-01-08T14:00:00 | D177: Uguen Nicolas | E177: ZMD | F177: 29 Finistere ZMD - Brest | G177: CHAMBRE | H177: OK | I177: =VLOOKUP(A:A,CODE[#All],2,0) -> Raccordée OK | J177: S1 | K177: =VLOOKUP(J:J,SEM[#All],2,0) -> JANVIER | AJ177: =IF(GRDV[[#This Row],[Synchro]]="OK",SUBTOTAL(3,GRDV[[#This Row],[Synchro]]),"") -> 1 | AK177: =IF(GRDV[[#This Row],[Synchro]]="NOK",SUBTOTAL(3,GRDV[[#This Row],[Synchro]]),"") -> 
A178: 1606 | B178: Raccordement avec synchro | C178: 2022-01-08T15:00:00 | D178: Gaddour Neji | E178: ZMD | F178: 29 Finistere ZMD - Morlaix | G178: STANDARD | H178: OK | I178: =VLOOKUP(A:A,CODE[#All],2,0) -> Raccordée OK | J178: S1 | K178: =VLOOKUP(J:J,SEM[#All],2,0) -> JANVIER | AJ178: =IF(GRDV[[#This Row],[Synchro]]="OK",SUBTOTAL(3,GRDV[[#This Row],[Synchro]]),"") -> 1 | AK178: =IF(GRDV[[#This Row],[Synchro]]="NOK",SUBTOTAL(3,GRDV[[#This Row],[Synchro]]),"") -> 
A179: 1606 | B179: Raccordement avec synchro | C179: 2022-01-08T15:00:00 | D179: Fanaoui Salah | E179: ZMD | F179: 29 Finistere ZMD - Brest | G179: STANDARD | H179: OK | I179: =VLOOKUP(A:A,CODE[#All],2,0) -> Raccordée OK | J179: S1 | K179: =VLOOKUP(J:J,SEM[#All],2,0) -> JANVIER | AJ179: =IF(GRDV[[#This Row],[Synchro]]="OK",SUBTOTAL(3,GRDV[[#This Row],[Synchro]]),"") -> 1 | AK179: =IF(GRDV[[#This Row],[Synchro]]="NOK",SUBTOTAL(3,GRDV[[#This Row],[Synchro]]),"") -> 
A180: 1022 | B180: Client réalise les travaux | C180: 2022-01-10T08:00:00 | D180: Bordon Tarek | E180: RIP | F180: 44 LOIRE-ATLANTIQUE - CHATEAUBRIANT RIP LOAN | G180: POTEAU | H180: NOK | I180: =VLOOKUP(A:A,CODE[#All],2,0) -> Echecs Techniques | J180: S2 | K180: =VLOOKUP(J:J,SEM[#All],2,0) -> JANVIER | AJ180: =IF(GRDV[[#This Row],[Synchro]]="OK",SUBTOTAL(3,GRDV[[#This Row],[Synchro]]),"") ->  | AK180: =IF(GRDV[[#This Row],[Synchro]]="NOK",SUBTOTAL(3,GRDV[[#This Row],[Synchro]]),"") -> 1
A181: 407 | B181: Client absent | C181: 2022-01-10T08:00:00 | D181: Belgacem Amine | E181: RIP | F181: 44 LOIRE-ATLANTIQUE - HERIC RIP LOAN | G181: POTEAU | H181: NOK | I181: =VLOOKUP(A:A,CODE[#All],2,0) -> Echecs Client | J181: S2 | K181: =VLOOKUP(J:J,SEM[#All],2,0) -> JANVIER | AJ181: =IF(GRDV[[#This Row],[Synchro]]="OK",SUBTOTAL(3,GRDV[[#This Row],[Synchro]]),"") ->  | AK181: =IF(GRDV[[#This Row],[Synchro]]="NOK",SUBTOTAL(3,GRDV[[#This Row],[Synchro]]),"") -> 1
A182: 1773 | B182: Fourreau à déboucher (extérieur) | C182: 2022-01-10T08:00:00 | D182: Bernier Brandon | E182: RIP | F182: 44 LOIRE-ATLANTIQUE - HERIC RIP LOAN | G182: CHAMBRE | H182: NOK | I182: =VLOOKUP(A:A,CODE[#All],2,0) -> Echecs Techniques | J182: S2 | K182: =VLOOKUP(J:J,SEM[#All],2,0) -> JANVIER | AJ182: =IF(GRDV[[#This Row],[Synchro]]="OK",SUBTOTAL(3,GRDV[[#This Row],[Synchro]]),"") ->  | AK182: =IF(GRDV[[#This Row],[Synchro]]="NOK",SUBTOTAL(3,GRDV[[#This Row],[Synchro]]),"") -> 1
A183: 1606 | B183: Raccordement avec synchro | C183: 2022-01-10T08:00:00 | D183: Bachar Abdoulrahim | E183: RIP | F183: 44 LOIRE-ATLANTIQUE - CHATEAUBRIANT RIP LOAN | G183: CHAMBRE | H183: OK | I183: =VLOOKUP(A:A,CODE[#All],2,0) -> Raccordée OK | J183: S2 | K183: =VLOOKUP(J:J,SEM[#All],2,0) -> JANVIER | AJ183: =IF(GRDV[[#This Row],[Synchro]]="OK",SUBTOTAL(3,GRDV[[#This Row],[Synchro]]),"") -> 1 | AK183: =IF(GRDV[[#This Row],[Synchro]]="NOK",SUBTOTAL(3,GRDV[[#This Row],[Synchro]]),"") -> 
A184: 1606 | B184: Raccordement avec synchro | C184: 2022-01-10T08:00:00 | D184: Ishagthabit Madebo | E184: ZMD | F184: 29 Finistere ZMD - Douarnenez | G184: CHAMBRE | H184: OK | I184: =VLOOKUP(A:A,CODE[#All],2,0) -> Raccordée OK | J184: S2 | K184: =VLOOKUP(J:J,SEM[#All],2,0) -> JANVIER | AJ184: =IF(GRDV[[#This Row],[Synchro]]="OK",SUBTOTAL(3,GRDV[[#This Row],[Synchro]]),"") -> 1 | AK184: =IF(GRDV[[#This Row],[Synchro]]="NOK",SUBTOTAL(3,GRDV[[#This Row],[Synchro]]),"") -> 
A185: 1606 | B185: Raccordement avec synchro | C185: 2022-01-10T08:00:00 | D185: Fanaoui Salah | E185: ZMD | F185: 29 Finistere ZMD - Brest | G185: FACADE | H185: OK | I185: =VLOOKUP(A:A,CODE[#All],2,0) -> Raccordée OK | J185: S2 | K185: =VLOOKUP(J:J,SEM[#All],2,0) -> JANVIER | AJ185: =IF(GRDV[[#This Row],[Synchro]]="OK",SUBTOTAL(3,GRDV[[#This Row],[Synchro]]),"") -> 1 | AK185: =IF(GRDV[[#This Row],[Synchro]]="NOK",SUBTOTAL(3,GRDV[[#This Row],[Synchro]]),"") -> 
A186: 1606 | B186: Raccordement avec synchro | C186: 2022-01-10T08:00:00 | D186: Uguen Nicolas | E186: ZMD | F186: 29 Finistere ZMD - Brest | G186: POTEAU | H186: OK | I186: =VLOOKUP(A:A,CODE[#All],2,0) -> Raccordée OK | J186: S2 | K186: =VLOOKUP(J:J,SEM[#All],2,0) -> JANVIER | AJ186: =IF(GRDV[[#This Row],[Synchro]]="OK",SUBTOTAL(3,GRDV[[#This Row],[Synchro]]),"") -> 1 | AK186: =IF(GRDV[[#This Row],[Synchro]]="NOK",SUBTOTAL(3,GRDV[[#This Row],[Synchro]]),"") -> 
A187: 1606 | B187: Raccordement avec synchro | C187: 2022-01-10T08:00:00 | D187: Borni Haitem | E187: RIP | F187: 44 LOIRE-ATLANTIQUE - HERIC RIP LOAN | G187: CHAMBRE | H187: OK | I187: =VLOOKUP(A:A,CODE[#All],2,0) -> Raccordée OK | J187: S2 | K187: =VLOOKUP(J:J,SEM[#All],2,0) -> JANVIER | AJ187: =IF(GRDV[[#This Row],[Synchro]]="OK",SUBTOTAL(3,GRDV[[#This Row],[Synchro]]),"") -> 1 | AK187: =IF(GRDV[[#This Row],[Synchro]]="NOK",SUBTOTAL(3,GRDV[[#This Row],[Synchro]]),"") -> 
A188: 1606 | B188: Raccordement avec synchro | C188: 2022-01-10T08:00:00 | D188: Ginet Cyrille | E188: ZMD | F188: 29 Finistere ZMD - Morlaix | G188: CHAMBRE | H188: OK | I188: =VLOOKUP(A:A,CODE[#All],2,0) -> Raccordée OK | J188: S2 | K188: =VLOOKUP(J:J,SEM[#All],2,0) -> JANVIER | AJ188: =IF(GRDV[[#This Row],[Synchro]]="OK",SUBTOTAL(3,GRDV[[#This Row],[Synchro]]),"") -> 1 | AK188: =IF(GRDV[[#This Row],[Synchro]]="NOK",SUBTOTAL(3,GRDV[[#This Row],[Synchro]]),"") -> 
A189: 1606 | B189: Raccordement avec synchro | C189: 2022-01-10T08:00:00 | D189: Gaddour Neji | E189: ZMD | F189: 29 Finistere ZMD - Brest | G189: STANDARD | H189: OK | I189: =VLOOKUP(A:A,CODE[#All],2,0) -> Raccordée OK | J189: S2 | K189: =VLOOKUP(J:J,SEM[#All],2,0) -> JANVIER | AJ189: =IF(GRDV[[#This Row],[Synchro]]="OK",SUBTOTAL(3,GRDV[[#This Row],[Synchro]]),"") -> 1 | AK189: =IF(GRDV[[#This Row],[Synchro]]="NOK",SUBTOTAL(3,GRDV[[#This Row],[Synchro]]),"") -> 
A190: 407 | B190: Client absent | C190: 2022-01-10T08:00:00 | D190: Ahmed Zakaria | E190: ZMD | F190: 29 Finistere ZMD - Brest | G190: STANDARD | H190: NOK | I190: =VLOOKUP(A:A,CODE[#All],2,0) -> Echecs Client | J190: S2 | K190: =VLOOKUP(J:J,SEM[#All],2,0) -> JANVIER | AJ190: =IF(GRDV[[#This Row],[Synchro]]="OK",SUBTOTAL(3,GRDV[[#This Row],[Synchro]]),"") ->  | AK190: =IF(GRDV[[#This Row],[Synchro]]="NOK",SUBTOTAL(3,GRDV[[#This Row],[Synchro]]),"") -> 1
A191: 1606 | B191: Raccordement avec synchro | C191: 2022-01-10T10:00:00 | D191: Fanaoui Salah | E191: ZMD | F191: 29 Finistere ZMD - Brest | G191: STANDARD | H191: OK | I191: =VLOOKUP(A:A,CODE[#All],2,0) -> Raccordée OK | J191: S2 | K191: =VLOOKUP(J:J,SEM[#All],2,0) -> JANVIER | AJ191: =IF(GRDV[[#This Row],[Synchro]]="OK",SUBTOTAL(3,GRDV[[#This Row],[Synchro]]),"") -> 1 | AK191: =IF(GRDV[[#This Row],[Synchro]]="NOK",SUBTOTAL(3,GRDV[[#This Row],[Synchro]]),"") -> 
A192: 1606 | B192: Raccordement avec synchro | C192: 2022-01-10T10:00:00 | D192: Gaddour Neji | E192: ZMD | F192: 29 Finistere ZMD - Brest | G192: STANDARD | H192: OK | I192: =VLOOKUP(A:A,CODE[#All],2,0) -> Raccordée OK | J192: S2 | K192: =VLOOKUP(J:J,SEM[#All],2,0) -> JANVIER | AJ192: =IF(GRDV[[#This Row],[Synchro]]="OK",SUBTOTAL(3,GRDV[[#This Row],[Synchro]]),"") -> 1 | AK192: =IF(GRDV[[#This Row],[Synchro]]="NOK",SUBTOTAL(3,GRDV[[#This Row],[Synchro]]),"") -> 
A193: 1024 | B193: Autorisation du propriétaire | C193: 2022-01-10T11:00:00 | D193: Uguen Nicolas | E193: ZMD | F193: 29 Finistere ZMD - Brest | G193: POTEAU | H193: NOK | I193: =VLOOKUP(A:A,CODE[#All],2,0) -> Echecs Techniques | J193: S2 | K193: =VLOOKUP(J:J,SEM[#All],2,0) -> JANVIER | AJ193: =IF(GRDV[[#This Row],[Synchro]]="OK",SUBTOTAL(3,GRDV[[#This Row],[Synchro]]),"") ->  | AK193: =IF(GRDV[[#This Row],[Synchro]]="NOK",SUBTOTAL(3,GRDV[[#This Row],[Synchro]]),"") -> 1
A194: 1774 | B194: Demande de recâblage multi PM | C194: 2022-01-10T11:00:00 | D194: Bordon Tarek | E194: RIP | F194: 44 LOIRE-ATLANTIQUE - CHATEAUBRIANT RIP LOAN | G194: FACADE | H194: NOK | I194: =VLOOKUP(A:A,CODE[#All],2,0) -> Echecs Infra | J194: S2 | K194: =VLOOKUP(J:J,SEM[#All],2,0) -> JANVIER | AJ194: =IF(GRDV[[#This Row],[Synchro]]="OK",SUBTOTAL(3,GRDV[[#This Row],[Synchro]]),"") ->  | AK194: =IF(GRDV[[#This Row],[Synchro]]="NOK",SUBTOTAL(3,GRDV[[#This Row],[Synchro]]),"") -> 1
A195: 1606 | B195: Raccordement avec synchro | C195: 2022-01-10T11:00:00 | D195: Borni Haitem | E195: RIP | F195: 44 LOIRE-ATLANTIQUE - HERIC RIP LOAN | G195: CHAMBRE | H195: OK | I195: =VLOOKUP(A:A,CODE[#All],2,0) -> Raccordée OK | J195: S2 | K195: =VLOOKUP(J:J,SEM[#All],2,0) -> JANVIER | AJ195: =IF(GRDV[[#This Row],[Synchro]]="OK",SUBTOTAL(3,GRDV[[#This Row],[Synchro]]),"") -> 1 | AK195: =IF(GRDV[[#This Row],[Synchro]]="NOK",SUBTOTAL(3,GRDV[[#This Row],[Synchro]]),"") -> 
A196: 1716 | B196: Fourreaux bouchés | C196: 2022-01-10T11:00:00 | D196: Bernier Brandon | E196: RIP | F196: 44 LOIRE-ATLANTIQUE - HERIC RIP LOAN | G196: CHAMBRE | H196: NOK | I196: =VLOOKUP(A:A,CODE[#All],2,0) -> Echecs Techniques | J196: S2 | K196: =VLOOKUP(J:J,SEM[#All],2,0) -> JANVIER | AJ196: =IF(GRDV[[#This Row],[Synchro]]="OK",SUBTOTAL(3,GRDV[[#This Row],[Synchro]]),"") ->  | AK196: =IF(GRDV[[#This Row],[Synchro]]="NOK",SUBTOTAL(3,GRDV[[#This Row],[Synchro]]),"") -> 1
A197: 1606 | B197: Raccordement avec synchro | C197: 2022-01-10T11:00:00 | D197: Belgacem Amine | E197: RIP | F197: 44 LOIRE-ATLANTIQUE - HERIC RIP LOAN | G197: POTEAU | H197: OK | I197: =VLOOKUP(A:A,CODE[#All],2,0) -> Raccordée OK | J197: S2 | K197: =VLOOKUP(J:J,SEM[#All],2,0) -> JANVIER | AJ197: =IF(GRDV[[#This Row],[Synchro]]="OK",SUBTOTAL(3,GRDV[[#This Row],[Synchro]]),"") -> 1 | AK197: =IF(GRDV[[#This Row],[Synchro]]="NOK",SUBTOTAL(3,GRDV[[#This Row],[Synchro]]),"") -> 
A198: 1606 | B198: Raccordement avec synchro | C198: 2022-01-10T11:00:00 | D198: Bouraya Riwan | E198: ZMD | F198: 29 Finistere ZMD - Douarnenez | G198: POTEAU | H198: =IF(A198>1606,"NOK",IF(A198<1606,"NOK",IF(A198=1606,"OK"))) -> OK | I198: =VLOOKUP(A:A,CODE[#All],2,0) -> Raccordée OK | J198: S2 | K198: =VLOOKUP(J:J,SEM[#All],2,0) -> JANVIER | AJ198: =IF(GRDV[[#This Row],[Synchro]]="OK",SUBTOTAL(3,GRDV[[#This Row],[Synchro]]),"") -> 1 | AK198: =IF(GRDV[[#This Row],[Synchro]]="NOK",SUBTOTAL(3,GRDV[[#This Row],[Synchro]]),"") -> 
A199: 1606 | B199: Raccordement avec synchro | C199: 2022-01-10T11:00:00 | D199: Ishagthabit Madebo | E199: ZMD | F199: 29 Finistere ZMD - Concarneau | G199: STANDARD | H199: OK | I199: =VLOOKUP(A:A,CODE[#All],2,0) -> Raccordée OK | J199: S2 | K199: =VLOOKUP(J:J,SEM[#All],2,0) -> JANVIER | AJ199: =IF(GRDV[[#This Row],[Synchro]]="OK",SUBTOTAL(3,GRDV[[#This Row],[Synchro]]),"") -> 1 | AK199: =IF(GRDV[[#This Row],[Synchro]]="NOK",SUBTOTAL(3,GRDV[[#This Row],[Synchro]]),"") -> 
A200: 1606 | B200: Raccordement avec synchro | C200: 2022-01-10T11:00:00 | D200: Bachar Abdoulrahim | E200: RIP | F200: 44 LOIRE-ATLANTIQUE - CHATEAUBRIANT RIP LOAN | G200: CHAMBRE | H200: OK | I200: =VLOOKUP(A:A,CODE[#All],2,0) -> Raccordée OK | J200: S2 | K200: =VLOOKUP(J:J,SEM[#All],2,0) -> JANVIER | AJ200: =IF(GRDV[[#This Row],[Synchro]]="OK",SUBTOTAL(3,GRDV[[#This Row],[Synchro]]),"") -> 1 | AK200: =IF(GRDV[[#This Row],[Synchro]]="NOK",SUBTOTAL(3,GRDV[[#This Row],[Synchro]]),"") -> 
... 2050 more rows

Sheet TCD SEM
A1: Volumetrie semaine | E1: Taux de transformation
A2: Étiquettes de lignes | B2: Nombre de Synchro | E2: Somme de Total inter | F2: Somme de % OK
A3: S9 | B3: 160 | E3: 160 | F3: 0.75
A4: Total général | B4: 160
A6: Volumetrie par spool | F6: Volumetrie par zone
A7: Nombre de Sem | B7: Étiquettes de colonnes | F7: Nombre de Synchro | G7: Étiquettes de colonnes
A8: Étiquettes de lignes | B8: NOK | C8: OK | D8: Total général | F8: Étiquettes de lignes | G8: RIP | H8: ZMD | I8: Total général
A9: CHAMBRE | B9: 144 | C9: 327 | D9: 471 | F9: S9 | G9: 72 | H9: 88 | I9: 160
A10: FACADE | B10: 20 | C10: 37 | D10: 57 | F10: Total général | G10: 72 | H10: 88 | I10: 160
A11: PON | B11: 1 | D11: 1
A12: POTEAU | B12: 118 | C12: 397 | D12: 515
A13: STANDARD | B13: 73 | C13: 455 | D13: 528 | F13: Taux d'échecs par spool
A14: Total général | B14: 356 | C14: 1216 | D14: 1572 | F14: Nombre de Synchro | G14: Étiquettes de colonnes
F15: Étiquettes de lignes | G15: S9 | H15: Total général
F16: Echecs Autre | G16: 5 | H16: 5
F17: Echecs Client | G17: 2 | H17: 2
F18: Echecs Infra | G18: 5 | H18: 5
F19: Echecs Techniques | G19: 28 | H19: 28
F20: Total général | G20: 40 | H20: 40
A23: Taux d'echecs par secteur | E23: Taux d'echecs par zone
A24: Nombre de Sem | B24: Étiquettes de colonnes | E24: Nombre de Synchro | F24: Étiquettes de colonnes
A25: Étiquettes de lignes | B25: NOK | C25: Total général | E25: Étiquettes de lignes | F25: S9 | G25: Total général
A26: 29 Finistere RIP - Douarnenez THDB | B26: 1 | C26: 1 | E26: RIP | F26: 72 | G26: 72
A27: 29 Finistere ZMD - Brest | B27: 94 | C27: 94 | E27: ZMD | F27: 88 | G27: 88
A28: 29 Finistere ZMD - Concarneau | B28: 8 | C28: 8 | E28: Total général | F28: 160 | G28: 160
A29: 29 Finistere ZMD - Douarnenez | B29: 24 | C29: 24
A30: 29 Finistere ZMD - Morlaix | B30: 37 | C30: 37 | E30: Sem | F30: (Tous)
A31: 44 LOIRE-ATLANTIQUE - ANCENIS RIP LOAN | B31: 3 | C31: 3 | E31: Taux d'échecs par nomenclature
A32: 44 LOIRE-ATLANTIQUE - CHATEAUBRIANT RIP LOAN | B32: 51 | C32: 51 | E32: Étiquettes de lignes | F32: Nombre de Synchro
A33: 44 LOIRE-ATLANTIQUE - HERIC RIP LOAN | B33: 123 | C33: 123 | E33: Adresse erronée confirmée | F33: 4
A34: 44 LOIRE-ATLANTIQUE - PONTCHATEAU RIP LOAN | B34: 11 | C34: 11 | E34: Autorisation du propriétaire | F34: 23
A35: 44 LOIRE-ATLANTIQUE - PORNIC RIP LOAN | B35: 3 | C35: 3 | E35: Client absent | F35: 47
A36: Total général | B36: 355 | C36: 355 | E36: Client réalise les travaux | F36: 83
E37: Demande de voirie | F37: 1
E38: Etape 2-3 | F38: 13
E39: Fourreau à déboucher (extérieur) | F39: 43
E40: Fourreau à déboucher (intérieur) | F40: 1
E41: Fourreaux bouchés | F41: 21
E42: Freebox non reçue | F42: 13
E43: Manque de consommable | F43: 5
E44: Module optique Delta non reçu | F44: 4
E45: Nacelle + Autre dispositif sécurisé | F45: 2
E46: Pas d accès PBO | F46: 8
E47: RDV non honoré | F47: 4
E48: Refuse tous travaux | F48: 37
E49: Véhicule sur la chambre | F49: 2
E50: Total général | F50: 311

Sheet GRAPH SEM
C2: 275 rue Antoine Lecorvesier 29200 BREST | J2: S-9
